Workbook

Sheet sunsettable
A1: Calculation of local times of sunrise, solar noon, sunset, dawn, and dusk based on the calculation procedure by NOAA (http://www.srrb.noaa.gov/highlights/sunrise/sunrise.html)
A3: Input
A4: latitude in decimal degrees (positive in northern hemisphere) | B4: 38.97733333
A5: longitude in decimal degrees (negative for western hemisphere) | B5: -120.8715 | C5: dusk on offset | D5: 8
A6: year | B6: 2012 | C6: dawn Off offset | D6: 9 | G6: =MIN($E$83:$E$1947) -> 17:21:57.668 | H6: Earliest ON time
A7: month | B7: 1 | G7: =CONCATENATE(TEXT(HOUR($G$6),"#"),":00:00") -> 17:00:00 | H7: Earliest start time hour (Set your wall timer and TaskScheduler to start the script at this time)
A8: day | B8: 1
A9: time zone in hours relative to GMT/UTC (PST= -8, MST= -7, CST= -6, EST= -5) | B9: -8 | C9: DST Start | D9: DST End | E9: Note: DST starts the 2nd sunday in march and ends the day before the 1st sunday in November.
A10: daylight savings time (no= 0, yes= 1) | B10: 1 | C10: 2011-03-13 | D10: 2011-11-06
A12: Output (local time in days) | G12: =MAX($M$83:$M$1947) -> 07:41:33.576 | H12: Latest OFF time
A13: astronomical dawn (sun is 18 degrees below horizon) | B13: =dawn(B4,B5,B6,B7,B8,B9,B10,18) -> 06:46:37.565 | G13: =CONCATENATE(TEXT(HOUR($G$12)+1,"#"),":00:00") -> 8:00:00 | H13: Latest wall timer hour (Set your wall timer and Task Scheduler to stop the script at this time)
A14: nautical dawn (sun is 12 degrees below horizon) | B14: =dawn(B4,B5,B6,B7,B8,B9,B10,12) -> 07:19:02.524
A15: civil dawn (sun is 6 degrees below horizon) | B15: =dawn(B4,B5,B6,B7,B8,B9,B10,6) -> 07:52:26.991
A16: sunrise (sun is 0.833 degrees below horizon to account for refraction) | B16: =sunrise(B4,B5,B6,B7,B8,B9,B10) -> 08:22:19.799
A17: solar noon (sun is at its highest point in the sky for this day) | B17: =solarnoon(B4,B5,B6,B7,B8,B9,B10) -> 13:06:57.566
A18: sunset (sun is 0.833 degrees below horizon to account for refraction) | B18: =sunset(B4,B5,B6,B7,B8,B9,B10) -> 17:51:43.272
A19: civil dusk (sun is 6 degrees below horizon) | B19: =dusk(B4,B5,B6,B7,B8,B9,B10,6) -> 18:21:35.383
A20: nautical dusk (sun is 12 degrees below horizon) | B20: =dusk(B4,B5,B6,B7,B8,B9,B10,12) -> 18:54:59.238
A21: astronomical dusk (sun is 18 degrees below horizon) | B21: =dusk(B4,B5,B6,B7,B8,B9,B10,18) -> 19:27:23.743
A22: =CONCATENATE("Dynamic dawn (sun is ",D5,"° below horizon)") -> Dynamic dawn (sun is 8° below horizon) | B22: =dusk(B4,B5,B6,B7,B8,B9,B10,D6) -> 18:38:26.065
A23: =CONCATENATE("Dynamic dusk (sun is ",D5,"° below horizon)") -> Dynamic dusk (sun is 8° below horizon) | B23: =dusk(B4,B5,B6,B7,B8,B9,B10,D5) -> 18:32:51.270
E73: ```
C76: =MIN($E$83:$E$449) -> 17:21:57.668 | D76: Earliest ON time
C77: =CONCATENATE(TEXT(HOUR($C$76),"#"),":00:00") -> 17:00:00 | D77: Delay will be from the earliest start time hour (Set your TaskScheduler to start the script at this time)
C78: =$G$13 -> 8:00:00 | D78: Wall Timer OFF
I79: Dusk | J79: Dusk | K79: Dawn
I80: (UTC at | J80: (LDT at | K80: (UTC at
D81: Dawn OFF | E81: Dusk ON | F81: Dur- | I81: =CONCATENATE($D$5,"°below") -> 8°below | J81: =CONCATENATE($D$5,"° below ") -> 8° below | K81: =CONCATENATE($D$6,"° below") -> 9° below
C82: Date | D82: =CONCATENATE($D$5,"° ") -> 8° | E82: =CONCATENATE($D$5,"° ") -> 8° | F82: ation | G82: Delay | H82: DST | I82: horizon | J82: horizon | K82: horizon | L82: date | M82: sunrise | N82: sunset | O82: Day # | Q82: durz | R82: delta | S82: newdur
C83: =TEXT(L83,"mm/dd/yyyy") -> 01/01/2012 | D83: =TEXT(dawn($B$4,$B$5,YEAR($C83+1),MONTH($C83+1),DAY($C83+1),$B$9,$H83,$D$6),"hh:mm:ss") -> 06:35:46 | E83: =dusk($B$4,$B$5,YEAR(C83),MONTH(C83),DAY(C83),$B$9,$H83,$D$5) -> 17:32:51.270 | F83: =((TIME(23,59,59.999)-E83)+D83)*24 -> 13.04825833 | G83: =HOUR(E83-$C$77)*3600+MINUTE(E83-$C$77)*60+SECOND(E83-$C$77) -> 1971 | H83: =IF($B$10=1,IF(MATCH($L83,DATE(YEAR($L83),{1,3,11},{1,15,8})-WEEKDAY(DATE(YEAR($L83),{1,3,11},7)))=2,1,0),0) -> 0 | I83: =dusk($B$4,$B$5,YEAR($C83),MONTH($C83),DAY($C83),0,0,$D$5) -> 1.064482292 | J83: =dusk($B$4,$B$5,YEAR($C83),MONTH($C83),DAY($C83),$B$9,$H83,$D$5) -> 17:32:51.270 | K83: =dawn($B$4,$B$5,YEAR($C83+1),MONTH($C83+1),DAY($C83+1),0,0,$D$6) -> 14:35:46.426 | L83: =DATE($B$6,1,1) -> 2012-01-01 | M83: =dawn($B$4,$B$5,YEAR($C83+1),MONTH($C83+1),DAY($C83+1),$B$9,$H83,0) -> 07:27:23.605 | N83: =dusk($B$4,$B$5,YEAR(C83),MONTH(C83),DAY(C83),$B$9,$H83,0) -> 16:46:47.036 | O83: 0 | P83: =MIN(dusk($B$4,$B$5,YEAR(C83),MONTH(C83),DAY(C83),0,0,$D$5),E83) -> 17:32:51.270 | Q83: =IF(I83>K83,((TIME(23,59,59.999)-I83)+K83)*24,(K83-I83)*24) -> 13.0483767 | R83: =(E83-J83)*24 -> 0 | S83: =(Q83-R83) -> 13.0483767
C84: 01/02/2012 | D84: 06:35:55 | E84: 17:33:37.925 | F84: 13.03779859 | G84: =HOUR(E84-$C$77)*3600+MINUTE(E84-$C$77)*60+SECOND(E84-$C$77) -> 2018 | H84: =IF($B$10=1,IF(MATCH($L84,DATE(YEAR($L84),{1,3,11},{1,15,8})-WEEKDAY(DATE(YEAR($L84),{1,3,11},7)))=2,1,0),0) -> 0 | I84: 1.065022281 | J84: 17:33:37.925 | K84: =dawn($B$4,$B$5,YEAR($C84+1),MONTH($C84+1),DAY($C84+1),0,0,$D$6) -> 14:35:54.970 | L84: =L83+1 -> 2012-01-02 | M84: =dawn($B$4,$B$5,YEAR($C84+1),MONTH($C84+1),DAY($C84+1),$B$9,$H84,0) -> 07:27:28.894 | N84: =dusk($B$4,$B$5,YEAR(C84),MONTH(C84),DAY(C84),$B$9,$H84,0) -> 16:47:36.520 | O84: =O83+1 -> 1 | P84: =MIN(dusk($B$4,$B$5,YEAR(C84),MONTH(C84),DAY(C84),0,0,$D$5),E84) -> 17:33:37.925 | Q84: =IF(I84>K84,((TIME(23,59,59.999)-I84)+K84)*24,(K84-I84)*24) -> 13.03779032 | R84: =(E84-J84)*24 -> 0 | S84: =(Q84-R84) -> 13.03779032
C85: 01/03/2012 | D85: 06:36:02 | E85: 17:34:25.818 | F85: 13.02643948 | G85: 2066 | H85: =IF($B$10=1,IF(MATCH($L85,DATE(YEAR($L85),{1,3,11},{1,15,8})-WEEKDAY(DATE(YEAR($L85),{1,3,11},7)))=2,1,0),0) -> 0 | I85: 1.065576596 | J85: 17:34:25.818 | K85: 14:36:01.598 | L85: =L84+1 -> 2012-01-03 | M85: 07:27:32.025 | N85: 16:48:27.465 | O85: =O84+1 -> 2 | P85: 17:34:25.818 | Q85: 13.02632774 | R85: 0 | S85: 13.02632774
C86: 01/04/2012 | D86: 06:36:06 | E86: 17:35:14.903 | F86: 13.01391573 | G86: 2115 | H86: =IF($B$10=1,IF(MATCH($L86,DATE(YEAR($L86),{1,3,11},{1,15,8})-WEEKDAY(DATE(YEAR($L86),{1,3,11},7)))=2,1,0),0) -> 0 | I86: 1.066144715 | J86: 17:35:14.903 | K86: 14:36:06.295 | L86: 2012-01-04 | M86: 07:27:32.992 | N86: 16:49:19.820 | O86: 3 | P86: 17:35:14.903 | Q86: 13.01399781 | R86: 0 | S86: 13.01399781
C87: 01/05/2012 | D87: 06:36:09 | E87: 17:36:05.136 | F87: 13.00079554 | G87: 2165 | H87: =IF($B$10=1,IF(MATCH($L87,DATE(YEAR($L87),{1,3,11},{1,15,8})-WEEKDAY(DATE(YEAR($L87),{1,3,11},7)))=2,1,0),0) -> 0 | I87: 1.066726112 | J87: 17:36:05.136 | K87: 14:36:09.052 | L87: 2012-01-05 | M87: 07:27:31.793 | N87: 16:50:13.532 | O87: 4 | P87: 17:36:05.136 | Q87: 13.00080999 | R87: 0 | S87: 13.00080999
C88: 01/06/2012 | D88: 06:36:10 | E88: 17:36:56.470 | F88: 12.98681389 | G88: 2216 | H88: =IF($B$10=1,IF(MATCH($L88,DATE(YEAR($L88),{1,3,11},{1,15,8})-WEEKDAY(DATE(YEAR($L88),{1,3,11},7)))=2,1,0),0) -> 0 | I88: 1.067320255 | J88: 17:36:56.470 | K88: 14:36:09.858 | L88: 2012-01-06 | M88: 07:27:28.426 | N88: 16:51:08.548 | O88: 5 | P88: 17:36:56.470 | Q88: 12.9867743 | R88: 0 | S88: 12.9867743
C89: 01/07/2012 | D89: 06:36:09 | E89: 17:37:48.859 | F89: 12.97198359 | G89: 2269 | H89: =IF($B$10=1,IF(MATCH($L89,DATE(YEAR($L89),{1,3,11},{1,15,8})-WEEKDAY(DATE(YEAR($L89),{1,3,11},7)))=2,1,0),0) -> 0 | I89: 1.06792661 | J89: 17:37:48.859 | K89: 14:36:08.704 | L89: 2012-01-07 | M89: 07:27:22.890 | N89: 16:52:04.814 | O89: 6 | P89: 17:37:48.859 | Q89: 12.97190131 | R89: 0 | S89: 12.97190131
C90: 01/08/2012 | D90: 06:36:06 | E90: 17:38:42.257 | F90: 12.95631749 | G90: 2322 | H90: =IF($B$10=1,IF(MATCH($L90,DATE(YEAR($L90),{1,3,11},{1,15,8})-WEEKDAY(DATE(YEAR($L90),{1,3,11},7)))=2,1,0),0) -> 0 | I90: 1.068544641 | J90: 17:38:42.257 | K90: 14:36:05.585 | L90: 2012-01-08 | M90: 07:27:15.189 | N90: 16:53:02.277 | O90: 7 | P90: 17:38:42.257 | Q90: 12.95620209 | R90: 0 | S90: 12.95620209
C91: 01/09/2012 | D91: 06:36:00 | E91: 17:39:36.617 | F91: 12.93955072 | G91: 2377 | H91: =IF($B$10=1,IF(MATCH($L91,DATE(YEAR($L91),{1,3,11},{1,15,8})-WEEKDAY(DATE(YEAR($L91),{1,3,11},7)))=2,1,0),0) -> 0 | I91: 1.069173813 | J91: 17:39:36.617 | K91: 14:36:00.495 | L91: 2012-01-09 | M91: 07:27:05.328 | N91: 16:54:00.881 | O91: 8 | P91: 17:39:36.617 | Q91: 12.93968816 | R91: 0 | S91: 12.93968816
C92: 01/10/2012 | D92: 06:35:53 | E92: 17:40:31.894 | F92: 12.92225167 | G92: 2432 | H92: =IF($B$10=1,IF(MATCH($L92,DATE(YEAR($L92),{1,3,11},{1,15,8})-WEEKDAY(DATE(YEAR($L92),{1,3,11},7)))=2,1,0),0) -> 0 | I92: 1.069813588 | J92: 17:40:31.894 | K92: 14:35:53.431 | L92: 2012-01-10 | M92: 07:26:53.312 | N92: 16:55:00.571 | O92: 9 | P92: 17:40:31.894 | Q92: 12.92237151 | R92: 0 | S92: 12.92237151
C93: 01/11/2012 | D93: 06:35:44 | E93: 17:41:28.041 | F93: 12.90415541 | G93: 2488 | H93: =IF($B$10=1,IF(MATCH($L93,DATE(YEAR($L93),{1,3,11},{1,15,8})-WEEKDAY(DATE(YEAR($L93),{1,3,11},7)))=2,1,0),0) -> 0 | I93: 1.070463432 | J93: 17:41:28.041 | K93: 14:35:44.393 | L93: 2012-01-11 | M93: 07:26:39.150 | N93: 16:56:01.294 | O93: 10 | P93: 17:41:28.041 | Q93: 12.90426453 | R93: 0 | S93: 12.90426453
C94: 01/12/2012 | D94: 06:35:33 | E94: 17:42:25.011 | F94: 12.8852747 | G94: 2545 | H94: =IF($B$10=1,IF(MATCH($L94,DATE(YEAR($L94),{1,3,11},{1,15,8})-WEEKDAY(DATE(YEAR($L94),{1,3,11},7)))=2,1,0),0) -> 0 | I94: 1.071122813 | J94: 17:42:25.011 | K94: 14:35:33.379 | L94: 2012-01-12 | M94: 07:26:22.851 | N94: 16:57:02.992 | O94: 11 | P94: 17:42:25.011 | Q94: 12.88537997 | R94: 0 | S94: 12.88537997
C95: 01/13/2012 | D95: 06:35:20 | E95: 17:43:22.760 | F95: 12.86562223 | G95: 2603 | H95: =IF($B$10=1,IF(MATCH($L95,DATE(YEAR($L95),{1,3,11},{1,15,8})-WEEKDAY(DATE(YEAR($L95),{1,3,11},7)))=2,1,0),0) -> 0 | I95: 1.071791203 | J95: 17:43:22.760 | K95: 14:35:20.391 | L95: 2012-01-13 | M95: 07:26:04.428 | N95: 16:58:05.613 | O95: 12 | P95: 17:43:22.760 | Q95: 12.86573094 | R95: 0 | S95: 12.86573094
C96: 01/14/2012 | D96: 06:35:05 | E96: 17:44:21.242 | F96: 12.84521056 | G96: 2661 | H96: =IF($B$10=1,IF(MATCH($L96,DATE(YEAR($L96),{1,3,11},{1,15,8})-WEEKDAY(DATE(YEAR($L96),{1,3,11},7)))=2,1,0),0) -> 0 | I96: 1.072468079 | J96: 17:44:21.242 | K96: 14:35:05.433 | L96: 2012-01-14 | M96: 07:25:43.894 | N96: 16:59:09.100 | O96: 13 | P96: 17:44:21.242 | Q96: 12.84533084 | R96: 0 | S96: 12.84533084
C97: 01/15/2012 | D97: 06:34:49 | E97: 17:45:20.412 | F97: 12.82432989 | G97: 2720 | H97: =IF($B$10=1,IF(MATCH($L97,DATE(YEAR($L97),{1,3,11},{1,15,8})-WEEKDAY(DATE(YEAR($L97),{1,3,11},7)))=2,1,0),0) -> 0 | I97: 1.073152921 | J97: 17:45:20.412 | K97: 14:34:48.508 | L97: 2012-01-15 | M97: 07:25:21.264 | N97: 17:00:13.401 | O97: 14 | P97: 17:45:20.412 | Q97: 12.82419334 | R97: 0 | S97: 12.82419334
C98: 01/16/2012 | D98: 06:34:30 | E98: 17:46:20.227 | F98: 12.80243694 | G98: 2780 | H98: =IF($B$10=1,IF(MATCH($L98,DATE(YEAR($L98),{1,3,11},{1,15,8})-WEEKDAY(DATE(YEAR($L98),{1,3,11},7)))=2,1,0),0) -> 0 | I98: 1.07384522 | J98: 17:46:20.227 | K98: 14:34:29.623 | L98: 2012-01-16 | M98: 07:24:56.554 | N98: 17:01:18.461 | O98: 15 | P98: 17:46:20.227 | Q98: 12.80233235 | R98: 0 | S98: 12.80233235
C99: 01/17/2012 | D99: 06:34:09 | E99: 17:47:20.642 | F99: 12.77982158 | G99: 2841 | H99: =IF($B$10=1,IF(MATCH($L99,DATE(YEAR($L99),{1,3,11},{1,15,8})-WEEKDAY(DATE(YEAR($L99),{1,3,11},7)))=2,1,0),0) -> 0 | I99: 1.074544471 | J99: 17:47:20.642 | K99: 14:34:08.785 | L99: 2012-01-17 | M99: 07:24:29.783 | N99: 17:02:24.227 | O99: 16 | P99: 17:47:20.642 | Q99: 12.77976199 | R99: 0 | S99: 12.77976199
C100: 01/18/2012 | D100: 06:33:46 | E100: 17:48:21.616 | F100: 12.75649568 | G100: 2902 | H100: =IF($B$10=1,IF(MATCH($L100,DATE(YEAR($L100),{1,3,11},{1,15,8})-WEEKDAY(DATE(YEAR($L100),{1,3,11},7)))=2,1,0),0) -> 0 | I100: 1.07525018 | J100: 17:48:21.616 | K100: 14:33:46.003 | L100: 2012-01-18 | M100: 07:24:00.969 | N100: 17:03:30.647 | O100: 17 | P100: 17:48:21.616 | Q100: 12.75649655 | R100: 0 | S100: 12.75649655
C101: 01/19/2012 | D101: 06:33:21 | E101: 17:49:23.105 | F101: 12.73247089 | G101: 2963 | H101: =IF($B$10=1,IF(MATCH($L101,DATE(YEAR($L101),{1,3,11},{1,15,8})-WEEKDAY(DATE(YEAR($L101),{1,3,11},7)))=2,1,0),0) -> 0 | I101: 1.075961861 | J101: 17:49:23.105 | K101: 14:33:21.286 | L101: 2012-01-19 | M101: 07:23:30.133 | N101: 17:04:37.669 | O101: 18 | P101: 17:49:23.105 | Q101: 12.73255045 | R101: 0 | S101: 12.73255045
C102: 01/20/2012 | D102: 06:32:55 | E102: 17:50:25.069 | F102: 12.7080364 | G102: 3025 | H102: =IF($B$10=1,IF(MATCH($L102,DATE(YEAR($L102),{1,3,11},{1,15,8})-WEEKDAY(DATE(YEAR($L102),{1,3,11},7)))=2,1,0),0) -> 0 | I102: 1.076679039 | J102: 17:50:25.069 | K102: 14:32:54.647 | L102: 2012-01-20 | M102: 07:22:57.297 | N102: 17:05:45.242 | O102: 19 | P102: 17:50:25.069 | Q102: 12.70793822 | R102: 0 | S102: 12.70793822
C103: 01/21/2012 | D103: 06:32:26 | E103: 17:51:27.468 | F103: 12.6826478 | G103: 3087 | H103: =IF($B$10=1,IF(MATCH($L103,DATE(YEAR($L103),{1,3,11},{1,15,8})-WEEKDAY(DATE(YEAR($L103),{1,3,11},7)))=2,1,0),0) -> 0 | I103: 1.077401249 | J103: 17:51:27.468 | K103: 14:32:26.096 | L103: 2012-01-21 | M103: 07:22:22.484 | N103: 17:06:53.318 | O103: 20 | P103: 17:51:27.468 | Q103: 12.68267448 | R103: 0 | S103: 12.68267448
C104: 01/22/2012 | D104: 06:31:56 | E104: 17:52:30.263 | F104: 12.6568715 | G104: 3150 | H104: =IF($B$10=1,IF(MATCH($L104,DATE(YEAR($L104),{1,3,11},{1,15,8})-WEEKDAY(DATE(YEAR($L104),{1,3,11},7)))=2,1,0),0) -> 0 | I104: 1.078128039 | J104: 17:52:30.263 | K104: 14:31:55.649 | L104: 2012-01-22 | M104: 07:21:45.719 | N104: 17:08:01.846 | O104: 21 | P104: 17:52:30.263 | Q104: 12.65677388 | R104: 0 | S104: 12.65677388
C105: 01/23/2012 | D105: 06:31:23 | E105: 17:53:33.415 | F105: 12.63016252 | G105: 3213 | H105: =IF($B$10=1,IF(MATCH($L105,DATE(YEAR($L105),{1,3,11},{1,15,8})-WEEKDAY(DATE(YEAR($L105),{1,3,11},7)))=2,1,0),0) -> 0 | I105: 1.078858969 | J105: 17:53:33.415 | K105: 14:31:23.319 | L105: 2012-01-23 | M105: 07:21:07.026 | N105: 17:09:10.779 | O105: 22 | P105: 17:53:33.415 | Q105: 12.63025111 | R105: 0 | S105: 12.63025111
C106: 01/24/2012 | D106: 06:30:49 | E106: 17:54:36.888 | F106: 12.60308667 | G106: 3277 | H106: =IF($B$10=1,IF(MATCH($L106,DATE(YEAR($L106),{1,3,11},{1,15,8})-WEEKDAY(DATE(YEAR($L106),{1,3,11},7)))=2,1,0),0) -> 0 | I106: 1.079593611 | J106: 17:54:36.888 | K106: 14:30:49.123 | L106: 2012-01-24 | M106: 07:20:26.432 | N106: 17:10:20.072 | O106: 23 | P106: 17:54:36.888 | Q106: 12.60312084 | R106: 0 | S106: 12.60312084
C107: 01/25/2012 | D107: 06:30:13 | E107: 17:55:40.646 | F107: 12.57537608 | G107: 3341 | H107: =IF($B$10=1,IF(MATCH($L107,DATE(YEAR($L107),{1,3,11},{1,15,8})-WEEKDAY(DATE(YEAR($L107),{1,3,11},7)))=2,1,0),0) -> 0 | I107: 1.080331552 | J107: 17:55:40.646 | K107: 14:30:13.078 | L107: 2012-01-25 | M107: 07:19:43.963 | N107: 17:11:29.679 | O107: 24 | P107: 17:55:40.646 | Q107: 12.57539771 | R107: 0 | S107: 12.57539771
C108: 01/26/2012 | D108: 06:29:35 | E108: 17:56:44.655 | F108: 12.54704036 | G108: 3405 | H108: =IF($B$10=1,IF(MATCH($L108,DATE(YEAR($L108),{1,3,11},{1,15,8})-WEEKDAY(DATE(YEAR($L108),{1,3,11},7)))=2,1,0),0) -> 0 | I108: 1.081072392 | J108: 17:56:44.655 | K108: 14:29:35.201 | L108: 2012-01-26 | M108: 07:18:59.649 | N108: 17:12:39.556 | O108: 25 | P108: 17:56:44.655 | Q108: 12.54709631 | R108: 0 | S108: 12.54709631
C109: 01/27/2012 | D109: 06:28:56 | E109: 17:57:48.881 | F109: 12.51836652 | G109: 3469 | H109: =IF($B$10=1,IF(MATCH($L109,DATE(YEAR($L109),{1,3,11},{1,15,8})-WEEKDAY(DATE(YEAR($L109),{1,3,11},7)))=2,1,0),0) -> 0 | I109: 1.081815747 | J109: 17:57:48.881 | K109: 14:28:55.513 | L109: 2012-01-27 | M109: 07:18:13.517 | N109: 17:13:49.661 | O109: 26 | P109: 17:57:48.881 | Q109: 12.51823114 | R109: 0 | S109: 12.51823114
C110: 01/28/2012 | D110: 06:28:14 | E110: 17:58:53.292 | F110: 12.48880788 | G110: 3533 | H110: =IF($B$10=1,IF(MATCH($L110,DATE(YEAR($L110),{1,3,11},{1,15,8})-WEEKDAY(DATE(YEAR($L110),{1,3,11},7)))=2,1,0),0) -> 0 | I110: 1.082561246 | J110: 17:58:53.292 | K110: 14:28:14.031 | L110: 2012-01-28 | M110: 07:17:25.598 | N110: 17:14:59.954 | O110: 27 | P110: 17:58:53.292 | Q110: 12.4888166 | R110: 0 | S110: 12.4888166
C111: 01/29/2012 | D111: 06:27:31 | E111: 17:59:57.857 | F111: 12.45892852 | G111: 3598 | H111: =IF($B$10=1,IF(MATCH($L111,DATE(YEAR($L111),{1,3,11},{1,15,8})-WEEKDAY(DATE(YEAR($L111),{1,3,11},7)))=2,1,0),0) -> 0 | I111: 1.083308534 | J111: 17:59:57.857 | K111: 14:27:30.778 | L111: 2012-01-29 | M111: 07:16:35.921 | N111: 17:16:10.394 | O111: 28 | P111: 17:59:57.857 | Q111: 12.45886698 | R111: 0 | S111: 12.45886698
C112: 01/30/2012 | D112: 06:26:46 | E112: 18:01:02.548 | F112: 12.4284588 | G112: 3663 | H112: =IF($B$10=1,IF(MATCH($L112,DATE(YEAR($L112),{1,3,11},{1,15,8})-WEEKDAY(DATE(YEAR($L112),{1,3,11},7)))=2,1,0),0) -> 0 | I112: 1.084057272 | J112: 18:01:02.548 | K112: 14:26:45.775 | L112: 2012-01-30 | M112: 07:15:44.518 | N112: 17:17:20.944 | O112: 29 | P112: 18:01:02.548 | Q112: 12.42839642 | R112: 0 | S112: 12.42839642
C113: 01/31/2012 | D113: 06:25:59 | E113: 18:02:07.337 | F113: 12.39740647 | G113: 3727 | H113: =IF($B$10=1,IF(MATCH($L113,DATE(YEAR($L113),{1,3,11},{1,15,8})-WEEKDAY(DATE(YEAR($L113),{1,3,11},7)))=2,1,0),0) -> 0 | I113: 1.084807138 | J113: 18:02:07.337 | K113: 14:25:59.045 | L113: 2012-01-31 | M113: 07:14:51.420 | N113: 17:18:31.569 | O113: 30 | P113: 18:02:07.337 | Q113: 12.39741889 | R113: 0 | S113: 12.39741889
C114: 02/01/2012 | D114: 06:25:11 | E114: 18:03:12.196 | F114: 12.36605668 | G114: 3792 | H114: =IF($B$10=1,IF(MATCH($L114,DATE(YEAR($L114),{1,3,11},{1,15,8})-WEEKDAY(DATE(YEAR($L114),{1,3,11},7)))=2,1,0),0) -> 0 | I114: 1.085557823 | J114: 18:03:12.196 | K114: 14:25:10.609 | L114: 2012-02-01 | M114: 07:13:56.659 | N114: 17:19:42.232 | O114: 31 | P114: 18:03:12.196 | Q114: 12.36594821 | R114: 0 | S114: 12.36594821
C115: 02/02/2012 | D115: 06:24:20 | E115: 18:04:17.101 | F115: 12.33386088 | G115: 3857 | H115: =IF($B$10=1,IF(MATCH($L115,DATE(YEAR($L115),{1,3,11},{1,15,8})-WEEKDAY(DATE(YEAR($L115),{1,3,11},7)))=2,1,0),0) -> 0 | I115: 1.086309037 | J115: 18:04:17.101 | K115: 14:24:20.494 | L115: 2012-02-02 | M115: 07:13:00.267 | N115: 17:20:52.901 | O115: 32 | P115: 18:04:17.101 | Q115: 12.33399798 | R115: 0 | S115: 12.33399798
C116: 02/03/2012 | D116: 06:23:29 | E116: 18:05:22.028 | F116: 12.30165899 | G116: 3922 | H116: =IF($B$10=1,IF(MATCH($L116,DATE(YEAR($L116),{1,3,11},{1,15,8})-WEEKDAY(DATE(YEAR($L116),{1,3,11},7)))=2,1,0),0) -> 0 | I116: 1.087060505 | J116: 18:05:22.028 | K116: 14:23:28.721 | L116: 2012-02-03 | M116: 07:12:02.277 | N116: 17:22:03.545 | O116: 33 | P116: 18:05:22.028 | Q116: 12.30158162 | R116: 0 | S116: 12.30158162
C117: 02/04/2012 | D117: 06:22:35 | E117: 18:06:26.954 | F117: 12.26862388 | G117: 3987 | H117: =IF($B$10=1,IF(MATCH($L117,DATE(YEAR($L117),{1,3,11},{1,15,8})-WEEKDAY(DATE(YEAR($L117),{1,3,11},7)))=2,1,0),0) -> 0 | I117: 1.087811968 | J117: 18:06:26.954 | K117: 14:22:35.318 | L117: 2012-02-04 | M117: 07:11:02.724 | N117: 17:23:14.134 | O117: 34 | P117: 18:06:26.954 | Q117: 12.26871234 | R117: 0 | S117: 12.26871234
C118: 02/05/2012 | D118: 06:21:40 | E118: 18:07:31.859 | F118: 12.23531691 | G118: 4052 | H118: =IF($B$10=1,IF(MATCH($L118,DATE(YEAR($L118),{1,3,11},{1,15,8})-WEEKDAY(DATE(YEAR($L118),{1,3,11},7)))=2,1,0),0) -> 0 | I118: 1.088563184 | J118: 18:07:31.859 | K118: 14:21:40.310 | L118: 2012-02-05 | M118: 07:10:01.640 | N118: 17:24:24.639 | O118: 35 | P118: 18:07:31.859 | Q118: 12.23540309 | R118: 0 | S118: 12.23540309
C119: 02/06/2012 | D119: 06:20:44 | E119: 18:08:36.723 | F119: 12.20174352 | G119: 4117 | H119: =IF($B$10=1,IF(MATCH($L119,DATE(YEAR($L119),{1,3,11},{1,15,8})-WEEKDAY(DATE(YEAR($L119),{1,3,11},7)))=2,1,0),0) -> 0 | I119: 1.089313927 | J119: 18:08:36.723 | K119: 14:20:43.723 | L119: 2012-02-06 | M119: 07:08:59.059 | N119: 17:25:35.034 | O119: 36 | P119: 18:08:36.723 | Q119: 12.20166661 | R119: 0 | S119: 12.20166661
C120: 02/07/2012 | D120: 06:19:46 | E120: 18:09:41.529 | F120: 12.16763096 | G120: 4182 | H120: =IF($B$10=1,IF(MATCH($L120,DATE(YEAR($L120),{1,3,11},{1,15,8})-WEEKDAY(DATE(YEAR($L120),{1,3,11},7)))=2,1,0),0) -> 0 | I120: 1.090063988 | J120: 18:09:41.529 | K120: 14:19:45.584 | L120: 2012-02-07 | M120: 07:07:55.017 | N120: 17:26:45.293 | O120: 37 | P120: 18:09:41.529 | Q120: 12.1675154 | R120: 0 | S120: 12.1675154
C121: 02/08/2012 | D121: 06:18:46 | E121: 18:10:46.258 | F121: 12.13298387 | G121: 4246 | H121: =IF($B$10=1,IF(MATCH($L121,DATE(YEAR($L121),{1,3,11},{1,15,8})-WEEKDAY(DATE(YEAR($L121),{1,3,11},7)))=2,1,0),0) -> 0 | I121: 1.090813172 | J121: 18:10:46.258 | K121: 14:18:45.920 | L121: 2012-02-08 | M121: 07:06:49.547 | N121: 17:27:55.395 | O121: 38 | P121: 18:10:46.258 | Q121: 12.13296169 | R121: 0 | S121: 12.13296169
C122: 02/09/2012 | D122: 06:17:45 | E122: 18:11:50.897 | F122: 12.0980843 | G122: 4311 | H122: =IF($B$10=1,IF(MATCH($L122,DATE(YEAR($L122),{1,3,11},{1,15,8})-WEEKDAY(DATE(YEAR($L122),{1,3,11},7)))=2,1,0),0) -> 0 | I122: 1.091561302 | J122: 18:11:50.897 | K122: 14:17:44.759 | L122: 2012-02-09 | M122: 07:05:42.684 | N122: 17:29:05.316 | O122: 39 | P122: 18:11:50.897 | Q122: 12.09801747 | R122: 0 | S122: 12.09801747
C123: 02/10/2012 | D123: 06:16:42 | E123: 18:12:55.430 | F123: 12.06265837 | G123: 4375 | H123: =IF($B$10=1,IF(MATCH($L123,DATE(YEAR($L123),{1,3,11},{1,15,8})-WEEKDAY(DATE(YEAR($L123),{1,3,11},7)))=2,1,0),0) -> 0 | I123: 1.092308216 | J123: 18:12:55.430 | K123: 14:16:42.130 | L123: 2012-02-10 | M123: 07:04:34.463 | N123: 17:30:15.036 | O123: 40 | P123: 18:12:55.430 | Q123: 12.06269446 | R123: 0 | S123: 12.06269446
C124: 02/11/2012 | D124: 06:15:38 | E124: 18:13:59.845 | F124: 12.02698738 | G124: 4440 | H124: =IF($B$10=1,IF(MATCH($L124,DATE(YEAR($L124),{1,3,11},{1,15,8})-WEEKDAY(DATE(YEAR($L124),{1,3,11},7)))=2,1,0),0) -> 0 | I124: 1.093053767 | J124: 18:13:59.845 | K124: 14:15:38.060 | L124: 2012-02-11 | M124: 07:03:24.919 | N124: 17:31:24.537 | O124: 41 | P124: 18:13:59.845 | Q124: 12.02700411 | R124: 0 | S124: 12.02700411
C125: 02/12/2012 | D125: 06:14:33 | E125: 18:15:04.132 | F125: 11.99107448 | G125: 4504 | H125: =IF($B$10=1,IF(MATCH($L125,DATE(YEAR($L125),{1,3,11},{1,15,8})-WEEKDAY(DATE(YEAR($L125),{1,3,11},7)))=2,1,0),0) -> 0 | I125: 1.093797823 | J125: 18:15:04.132 | K125: 14:14:32.579 | L125: 2012-02-12 | M125: 07:02:14.087 | N125: 17:32:33.803 | O125: 42 | P125: 18:15:04.132 | Q125: 11.99095761 | R125: 0 | S125: 11.99095761
C126: 02/13/2012 | D126: 06:13:26 | E126: 18:16:08.279 | F126: 11.95464469 | G126: 4568 | H126: =IF($B$10=1,IF(MATCH($L126,DATE(YEAR($L126),{1,3,11},{1,15,8})-WEEKDAY(DATE(YEAR($L126),{1,3,11},7)))=2,1,0),0) -> 0 | I126: 1.094540268 | J126: 18:16:08.279 | K126: 14:13:25.716 | L126: 2012-02-13 | M126: 07:01:02.003 | N126: 17:33:42.816 | O126: 43 | P126: 18:16:08.279 | Q126: 11.95456588 | R126: 0 | S126: 11.95456588
C127: 02/14/2012 | D127: 06:12:18 | E127: 18:17:12.278 | F127: 11.91797824 | G127: 4632 | H127: =IF($B$10=1,IF(MATCH($L127,DATE(YEAR($L127),{1,3,11},{1,15,8})-WEEKDAY(DATE(YEAR($L127),{1,3,11},7)))=2,1,0),0) -> 0 | I127: 1.095280999 | J127: 18:17:12.278 | K127: 14:12:17.501 | L127: 2012-02-14 | M127: 06:59:48.702 | N127: 17:34:51.564 | O127: 44 | P127: 18:17:12.278 | Q127: 11.91783957 | R127: 0 | S127: 11.91783957
C128: 02/15/2012 | D128: 06:11:08 | E128: 18:18:16.122 | F128: 11.88079947 | G128: 4696 | H128: =IF($B$10=1,IF(MATCH($L128,DATE(YEAR($L128),{1,3,11},{1,15,8})-WEEKDAY(DATE(YEAR($L128),{1,3,11},7)))=2,1,0),0) -> 0 | I128: 1.096019929 | J128: 18:18:16.122 | K128: 14:11:07.962 | L128: 2012-02-15 | M128: 06:58:34.219 | N128: 17:36:00.033 | O128: 45 | P128: 18:18:16.122 | Q128: 11.88078905 | R128: 0 | S128: 11.88078905
C129: 02/16/2012 | D129: 06:09:57 | E129: 18:19:19.803 | F129: 11.84338793 | G129: 4760 | H129: =IF($B$10=1,IF(MATCH($L129,DATE(YEAR($L129),{1,3,11},{1,15,8})-WEEKDAY(DATE(YEAR($L129),{1,3,11},7)))=2,1,0),0) -> 0 | I129: 1.096756985 | J129: 18:19:19.803 | K129: 14:09:57.131 | L129: 2012-02-16 | M129: 06:57:18.589 | N129: 17:37:08.212 | O129: 46 | P129: 18:19:19.803 | Q129: 11.84342445 | R129: 0 | S129: 11.84342445
C130: 02/17/2012 | D130: 06:08:45 | E130: 18:20:23.318 | F130: 11.80574506 | G130: 4823 | H130: =IF($B$10=1,IF(MATCH($L130,DATE(YEAR($L130),{1,3,11},{1,15,8})-WEEKDAY(DATE(YEAR($L130),{1,3,11},7)))=2,1,0),0) -> 0 | I130: 1.097492104 | J130: 18:20:23.318 | K130: 14:08:45.038 | L130: 2012-02-17 | M130: 06:56:01.847 | N130: 17:38:16.091 | O130: 47 | P130: 18:20:23.318 | Q130: 11.80575559 | R130: 0 | S130: 11.80575559
C131: 02/18/2012 | D131: 06:07:32 | E131: 18:21:26.661 | F131: 11.76787203 | G131: 4887 | H131: =IF($B$10=1,IF(MATCH($L131,DATE(YEAR($L131),{1,3,11},{1,15,8})-WEEKDAY(DATE(YEAR($L131),{1,3,11},7)))=2,1,0),0) -> 0 | I131: 1.09822524 | J131: 18:21:26.661 | K131: 14:07:31.712 | L131: 2012-02-18 | M131: 06:54:44.030 | N131: 17:39:23.662 | O131: 48 | P131: 18:21:26.661 | Q131: 11.76779207 | R131: 0 | S131: 11.76779207
C132: 02/19/2012 | D132: 06:06:17 | E132: 18:22:29.829 | F132: 11.72949188 | G132: 4950 | H132: =IF($B$10=1,IF(MATCH($L132,DATE(YEAR($L132),{1,3,11},{1,15,8})-WEEKDAY(DATE(YEAR($L132),{1,3,11},7)))=2,1,0),0) -> 0 | I132: 1.098956357 | J132: 18:22:29.829 | K132: 14:06:17.185 | L132: 2012-02-19 | M132: 06:53:25.172 | N132: 17:40:30.917 | O132: 49 | P132: 18:22:29.829 | Q132: 11.7295432 | R132: 0 | S132: 11.7295432
C133: 02/20/2012 | D133: 06:05:01 | E133: 18:23:32.821 | F133: 11.69088295 | G133: 5013 | H133: =IF($B$10=1,IF(MATCH($L133,DATE(YEAR($L133),{1,3,11},{1,15,8})-WEEKDAY(DATE(YEAR($L133),{1,3,11},7)))=2,1,0),0) -> 0 | I133: 1.099685433 | J133: 18:23:32.821 | K133: 14:05:01.486 | L133: 2012-02-20 | M133: 06:52:05.308 | N133: 17:41:37.851 | O133: 50 | P133: 18:23:32.821 | Q133: 11.69101805 | R133: 0 | S133: 11.69101805
C134: 02/21/2012 | D134: 06:03:45 | E134: 18:24:35.636 | F134: 11.65232327 | G134: 5076 | H134: =IF($B$10=1,IF(MATCH($L134,DATE(YEAR($L134),{1,3,11},{1,15,8})-WEEKDAY(DATE(YEAR($L134),{1,3,11},7)))=2,1,0),0) -> 0 | I134: 1.100412456 | J134: 18:24:35.636 | K134: 14:03:44.648 | L134: 2012-02-21 | M134: 06:50:44.473 | N134: 17:42:44.458 | O134: 51 | P134: 18:24:35.636 | Q134: 11.65222544 | R134: 0 | S134: 11.65222544
C135: 02/22/2012 | D135: 06:02:27 | E135: 18:25:38.274 | F135: 11.6132573 | G135: 5138 | H135: =IF($B$10=1,IF(MATCH($L135,DATE(YEAR($L135),{1,3,11},{1,15,8})-WEEKDAY(DATE(YEAR($L135),{1,3,11},7)))=2,1,0),0) -> 0 | I135: 1.101137427 | J135: 18:25:38.274 | K135: 14:02:26.700 | L135: 2012-02-22 | M135: 06:49:22.702 | N135: 17:43:50.735 | O135: 52 | P135: 18:25:38.274 | Q135: 11.61317392 | R135: 0 | S135: 11.61317392
C136: 02/23/2012 | D136: 06:01:08 | E136: 18:26:40.735 | F136: 11.57396255 | G136: 5201 | H136: =IF($B$10=1,IF(MATCH($L136,DATE(YEAR($L136),{1,3,11},{1,15,8})-WEEKDAY(DATE(YEAR($L136),{1,3,11},7)))=2,1,0),0) -> 0 | I136: 1.101860357 | J136: 18:26:40.735 | K136: 14:01:07.673 | L136: 2012-02-23 | M136: 06:48:00.030 | N136: 17:44:56.680 | O136: 53 | P136: 18:26:40.735 | Q136: 11.57387182 | R136: 0 | S136: 11.57387182
C137: 02/24/2012 | D137: 05:59:48 | E137: 18:27:43.021 | F137: 11.53443851 | G137: 5263 | H137: =IF($B$10=1,IF(MATCH($L137,DATE(YEAR($L137),{1,3,11},{1,15,8})-WEEKDAY(DATE(YEAR($L137),{1,3,11},7)))=2,1,0),0) -> 0 | I137: 1.102581266 | J137: 18:27:43.021 | K137: 13:59:47.599 | L137: 2012-02-24 | M137: 06:46:36.492 | N137: 17:46:02.290 | O137: 54 | P137: 18:27:43.021 | Q137: 11.53432725 | R137: 0 | S137: 11.53432725
C138: 02/25/2012 | D138: 05:58:27 | E138: 18:28:45.136 | F138: 11.49468445 | G138: 5325 | H138: =IF($B$10=1,IF(MATCH($L138,DATE(YEAR($L138),{1,3,11},{1,15,8})-WEEKDAY(DATE(YEAR($L138),{1,3,11},7)))=2,1,0),0) -> 0 | I138: 1.103300185 | J138: 18:28:45.136 | K138: 13:58:26.509 | L138: 2012-02-25 | M138: 06:45:12.122 | N138: 17:47:07.565 | O138: 55 | P138: 18:28:45.136 | Q138: 11.49454806 | R138: 0 | S138: 11.49454806
C139: 02/26/2012 | D139: 05:57:04 | E139: 18:29:47.082 | F139: 11.45442161 | G139: 5387 | H139: =IF($B$10=1,IF(MATCH($L139,DATE(YEAR($L139),{1,3,11},{1,15,8})-WEEKDAY(DATE(YEAR($L139),{1,3,11},7)))=2,1,0),0) -> 0 | I139: 1.104017155 | J139: 18:29:47.082 | K139: 13:57:04.433 | L139: 2012-02-26 | M139: 06:43:46.953 | N139: 17:48:12.506 | O139: 56 | P139: 18:29:47.082 | Q139: 11.45454191 | R139: 0 | S139: 11.45454191
C140: 02/27/2012 | D140: 05:55:41 | E140: 18:30:48.864 | F140: 11.41420439 | G140: 5449 | H140: =IF($B$10=1,IF(MATCH($L140,DATE(YEAR($L140),{1,3,11},{1,15,8})-WEEKDAY(DATE(YEAR($L140),{1,3,11},7)))=2,1,0),0) -> 0 | I140: 1.104732225 | J140: 18:30:48.864 | K140: 13:55:41.403 | L140: 2012-02-27 | M140: 06:42:21.021 | N140: 17:49:17.113 | O140: 57 | P140: 18:30:48.864 | Q140: 11.41431623 | R140: 0 | S140: 11.41431623
C141: 02/28/2012 | D141: 05:54:17 | E141: 18:31:50.487 | F141: 11.37375362 | G141: 5510 | H141: =IF($B$10=1,IF(MATCH($L141,DATE(YEAR($L141),{1,3,11},{1,15,8})-WEEKDAY(DATE(YEAR($L141),{1,3,11},7)))=2,1,0),0) -> 0 | I141: 1.105445451 | J141: 18:31:50.487 | K141: 13:54:17.449 | L141: 2012-02-28 | M141: 06:40:54.360 | N141: 17:50:21.391 | O141: 58 | P141: 18:31:50.487 | Q141: 11.37387825 | R141: 0 | S141: 11.37387825
C142: 02/29/2012 | D142: 05:52:53 | E142: 18:32:51.956 | F142: 11.33334551 | G142: 5572 | H142: =IF($B$10=1,IF(MATCH($L142,DATE(YEAR($L142),{1,3,11},{1,15,8})-WEEKDAY(DATE(YEAR($L142),{1,3,11},7)))=2,1,0),0) -> 0 | I142: 1.1061569 | J142: 18:32:51.956 | K142: 13:52:52.602 | L142: 2012-02-29 | M142: 06:39:27.002 | N142: 17:51:25.340 | O142: 59 | P142: 18:32:51.956 | Q142: 11.33323502 | R142: 0 | S142: 11.33323502
C143: 03/01/2012 | D143: 05:51:27 | E143: 18:33:53.278 | F143: 11.29242279 | G143: 5633 | H143: =IF($B$10=1,IF(MATCH($L143,DATE(YEAR($L143),{1,3,11},{1,15,8})-WEEKDAY(DATE(YEAR($L143),{1,3,11},7)))=2,1,0),0) -> 0 | I143: 1.106866643 | J143: 18:33:53.278 | K143: 13:51:26.894 | L143: 2012-03-01 | M143: 06:37:58.983 | N143: 17:52:28.966 | O143: 60 | P143: 18:33:53.278 | Q143: 11.29239339 | R143: 0 | S143: 11.29239339
C144: 03/02/2012 | D144: 05:50:00 | E144: 18:34:54.459 | F144: 11.25126131 | G144: 5694 | H144: =IF($B$10=1,IF(MATCH($L144,DATE(YEAR($L144),{1,3,11},{1,15,8})-WEEKDAY(DATE(YEAR($L144),{1,3,11},7)))=2,1,0),0) -> 0 | I144: 1.10757476 | J144: 18:34:54.459 | K144: 13:50:00.355 | L144: 2012-03-02 | M144: 06:36:30.334 | N144: 17:53:32.273 | O144: 61 | P144: 18:34:54.459 | Q144: 11.25136004 | R144: 0 | S144: 11.25136004
C145: 03/03/2012 | D145: 05:48:33 | E145: 18:35:55.507 | F145: 11.21013681 | G145: 5756 | H145: =IF($B$10=1,IF(MATCH($L145,DATE(YEAR($L145),{1,3,11},{1,15,8})-WEEKDAY(DATE(YEAR($L145),{1,3,11},7)))=2,1,0),0) -> 0 | I145: 1.108281337 | J145: 18:35:55.507 | K145: 13:48:33.017 | L145: 2012-03-03 | M145: 06:35:01.090 | N145: 17:54:35.266 | O145: 62 | P145: 18:35:55.507 | Q145: 11.21014146 | R145: 0 | S145: 11.21014146
C146: 03/04/2012 | D146: 05:47:05 | E146: 18:36:56.431 | F146: 11.1687693 | G146: 5816 | H146: =IF($B$10=1,IF(MATCH($L146,DATE(YEAR($L146),{1,3,11},{1,15,8})-WEEKDAY(DATE(YEAR($L146),{1,3,11},7)))=2,1,0),0) -> 0 | I146: 1.108986464 | J146: 18:36:56.431 | K146: 13:47:04.909 | L146: 2012-03-04 | M146: 06:33:31.282 | N146: 17:55:37.951 | O146: 63 | P146: 18:36:56.431 | Q146: 11.16874402 | R146: 0 | S146: 11.16874402
C147: =TEXT(L147,"mm/dd/yyyy") -> 03/05/2012 | D147: =TEXT(dawn($B$4,$B$5,YEAR($C147+1),MONTH($C147+1),DAY($C147+1),$B$9,$H147,$D$6),"hh:mm:ss") -> 05:45:36 | E147: =dusk($B$4,$B$5,YEAR(C147),MONTH(C147),DAY(C147),$B$9,$H147,$D$5) -> 18:37:57.237 | F147: =((TIME(23,59,59.999)-E147)+D147)*24 -> 11.12715647 | G147: 5877 | H147: =IF($B$10=1,IF(MATCH($L147,DATE(YEAR($L147),{1,3,11},{1,15,8})-WEEKDAY(DATE(YEAR($L147),{1,3,11},7)))=2,1,0),0) -> 0 | I147: =dusk($B$4,$B$5,YEAR($C147),MONTH($C147),DAY($C147),0,0,$D$5) -> 1.10969024 | J147: =dusk($B$4,$B$5,YEAR($C147),MONTH($C147),DAY($C147),$B$9,$H147,$D$5) -> 18:37:57.237 | K147: 13:45:36.063 | L147: 2012-03-05 | M147: 06:32:00.945 | N147: 17:56:40.334 | O147: 64 | P147: 18:37:57.237 | Q147: 11.12717392 | R147: 0 | S147: 11.12717392
C148: 03/06/2012 | D148: 05:44:07 | E148: 18:38:57.935 | F148: 11.08557364 | G148: =HOUR(E148-$C$77)*3600+MINUTE(E148-$C$77)*60+SECOND(E148-$C$77) -> 5938 | H148: =IF($B$10=1,IF(MATCH($L148,DATE(YEAR($L148),{1,3,11},{1,15,8})-WEEKDAY(DATE(YEAR($L148),{1,3,11},7)))=2,1,0),0) -> 0 | I148: 1.110392765 | J148: 18:38:57.935 | K148: =dawn($B$4,$B$5,YEAR($C148+1),MONTH($C148+1),DAY($C148+1),0,0,$D$6) -> 13:44:06.509 | L148: 2012-03-06 | M148: =dawn($B$4,$B$5,YEAR($C148+1),MONTH($C148+1),DAY($C148+1),$B$9,$H148,0) -> 06:30:30.110 | N148: =dusk($B$4,$B$5,YEAR(C148),MONTH(C148),DAY(C148),$B$9,$H148,0) -> 17:57:42.424 | O148: 65 | P148: =MIN(dusk($B$4,$B$5,YEAR(C148),MONTH(C148),DAY(C148),0,0,$D$5),E148) -> 18:38:57.935 | Q148: =IF(I148>K148,((TIME(23,59,59.999)-I148)+K148)*24,(K148-I148)*24) -> 11.08543722 | R148: =(E148-J148)*24 -> 0 | S148: =(Q148-R148) -> 11.08543722
C149: 03/07/2012 | D149: 05:42:36 | E149: 18:39:58.534 | F149: 11.04346271 | G149: 5999 | H149: =IF($B$10=1,IF(MATCH($L149,DATE(YEAR($L149),{1,3,11},{1,15,8})-WEEKDAY(DATE(YEAR($L149),{1,3,11},7)))=2,1,0),0) -> 0 | I149: 1.111094146 | J149: 18:39:58.534 | K149: 13:42:36.278 | L149: =L148+1 -> 2012-03-07 | M149: 06:28:58.810 | N149: 17:58:44.226 | O149: =O148+1 -> 66 | P149: 18:39:58.534 | Q149: 11.04353987 | R149: 0 | S149: 11.04353987
C150: 03/08/2012 | D150: 05:41:05 | E150: 18:40:59.044 | F150: 11.00137659 | G150: 6059 | H150: =IF($B$10=1,IF(MATCH($L150,DATE(YEAR($L150),{1,3,11},{1,15,8})-WEEKDAY(DATE(YEAR($L150),{1,3,11},7)))=2,1,0),0) -> 0 | I150: 1.111794494 | J150: 18:40:59.044 | K150: 13:41:05.400 | L150: 2012-03-08 | M150: 06:27:27.077 | N150: 17:59:45.750 | O150: 67 | P150: 18:40:59.044 | Q150: 11.00148767 | R150: 0 | S150: 11.00148767
C151: 03/09/2012 | D151: 05:39:34 | E151: 18:41:59.475 | F151: 10.95931255 | G151: 6119 | H151: =IF($B$10=1,IF(MATCH($L151,DATE(YEAR($L151),{1,3,11},{1,15,8})-WEEKDAY(DATE(YEAR($L151),{1,3,11},7)))=2,1,0),0) -> 0 | I151: 1.112493922 | J151: 18:41:59.475 | K151: 13:39:33.906 | L151: 2012-03-09 | M151: 06:25:54.943 | N151: 18:00:47.003 | O151: 68 | P151: 18:41:59.475 | Q151: 10.95928635 | R151: 0 | S151: 10.95928635
C152: 03/10/2012 | D152: 05:38:02 | E152: 18:42:59.836 | F152: 10.91699 | G152: 6180 | H152: =IF($B$10=1,IF(MATCH($L152,DATE(YEAR($L152),{1,3,11},{1,15,8})-WEEKDAY(DATE(YEAR($L152),{1,3,11},7)))=2,1,0),0) -> 0 | I152: 1.113192546 | J152: 18:42:59.836 | K152: 13:38:01.825 | L152: 2012-03-10 | M152: 06:24:22.440 | N152: 18:01:47.995 | O152: 69 | P152: 18:42:59.836 | Q152: 10.91694153 | R152: 0 | S152: 10.91694153
C153: 03/11/2012 | D153: 06:36:29 | E153: 19:44:00.138 | F153: 10.87440608 | G153: 9840 | H153: =IF($B$10=1,IF(MATCH($L153,DATE(YEAR($L153),{1,3,11},{1,15,8})-WEEKDAY(DATE(YEAR($L153),{1,3,11},7)))=2,1,0),0) -> 1 | I153: 1.113890487 | J153: 19:44:00.138 | K153: 13:36:29.190 | L153: 2012-03-11 | M153: 07:22:49.599 | N153: 19:02:48.735 | O153: 70 | P153: 19:44:00.138 | Q153: 10.87445873 | R153: 0 | S153: 10.87445873
C154: 03/12/2012 | D154: 06:34:56 | E154: 19:45:00.392 | F154: 10.83183564 | G154: 9900 | H154: =IF($B$10=1,IF(MATCH($L154,DATE(YEAR($L154),{1,3,11},{1,15,8})-WEEKDAY(DATE(YEAR($L154),{1,3,11},7)))=2,1,0),0) -> 1 | I154: 1.114587867 | J154: 19:45:00.392 | K154: 13:34:56.028 | L154: 2012-03-12 | M154: 07:21:16.452 | N154: 19:03:49.232 | O154: 71 | P154: 19:45:00.392 | Q154: 10.83184342 | R154: 0 | S154: 10.83184342
C155: 03/13/2012 | D155: 06:33:22 | E155: 19:46:00.607 | F155: 10.78899794 | G155: 9961 | H155: =IF($B$10=1,IF(MATCH($L155,DATE(YEAR($L155),{1,3,11},{1,15,8})-WEEKDAY(DATE(YEAR($L155),{1,3,11},7)))=2,1,0),0) -> 1 | I155: 1.115284808 | J155: 19:46:00.607 | K155: 13:33:22.371 | L155: 2012-03-13 | M155: 07:19:43.030 | N155: 19:04:49.496 | O155: 72 | P155: 19:46:00.607 | Q155: 10.78910101 | R155: 0 | S155: 10.78910101
C156: 03/14/2012 | D156: 06:31:48 | E156: 19:47:00.796 | F156: 10.74616775 | G156: 10021 | H156: =IF($B$10=1,IF(MATCH($L156,DATE(YEAR($L156),{1,3,11},{1,15,8})-WEEKDAY(DATE(YEAR($L156),{1,3,11},7)))=2,1,0),0) -> 1 | I156: 1.115981436 | J156: 19:47:00.796 | K156: 13:31:48.249 | L156: 2012-03-14 | M156: 07:18:09.363 | N156: 19:05:49.537 | O156: 73 | P156: 19:47:00.796 | Q156: 10.74623682 | R156: 0 | S156: 10.74623682
C157: 03/15/2012 | D157: 06:30:14 | E157: 19:48:00.969 | F157: 10.70334206 | G157: 10081 | H157: =IF($B$10=1,IF(MATCH($L157,DATE(YEAR($L157),{1,3,11},{1,15,8})-WEEKDAY(DATE(YEAR($L157),{1,3,11},7)))=2,1,0),0) -> 1 | I157: 1.116677877 | J157: 19:48:00.969 | K157: 13:30:13.691 | L157: 2012-03-15 | M157: 07:16:35.483 | N157: 19:06:49.364 | O157: 74 | P157: 19:48:00.969 | Q157: 10.70325618 | R157: 0 | S157: 10.70325618
C158: 03/16/2012 | D158: 06:28:39 | E158: 19:49:01.136 | F158: 10.66024005 | G158: 10141 | H158: =IF($B$10=1,IF(MATCH($L158,DATE(YEAR($L158),{1,3,11},{1,15,8})-WEEKDAY(DATE(YEAR($L158),{1,3,11},7)))=2,1,0),0) -> 1 | I158: 1.117374257 | J158: 19:49:01.136 | K158: 13:28:38.727 | L158: 2012-03-16 | M158: 07:15:01.420 | N158: 19:07:48.989 | O158: 75 | P158: 19:49:01.136 | Q158: 10.66016435 | R158: 0 | S158: 10.66016435
C159: 03/17/2012 | D159: 06:27:03 | E159: 19:50:01.309 | F159: 10.6168587 | G159: 10201 | H159: =IF($B$10=1,IF(MATCH($L159,DATE(YEAR($L159),{1,3,11},{1,15,8})-WEEKDAY(DATE(YEAR($L159),{1,3,11},7)))=2,1,0),0) -> 1 | I159: 1.118070702 | J159: 19:50:01.309 | K159: 13:27:03.388 | L159: 2012-03-17 | M159: 07:13:27.206 | N159: 19:08:48.422 | O159: 76 | P159: 19:50:01.309 | Q159: 10.61696661 | R159: 0 | S159: 10.61696661
C160: 03/18/2012 | D160: 06:25:28 | E160: 19:51:01.498 | F160: 10.57375051 | G160: 10261 | H160: =IF($B$10=1,IF(MATCH($L160,DATE(YEAR($L160),{1,3,11},{1,15,8})-WEEKDAY(DATE(YEAR($L160),{1,3,11},7)))=2,1,0),0) -> 1 | I160: 1.11876734 | J160: 19:51:01.498 | K160: 13:25:27.704 | L160: 2012-03-18 | M160: 07:11:52.869 | N160: 19:09:47.673 | O160: 77 | P160: 19:51:01.498 | Q160: 10.5736682 | R160: 0 | S160: 10.5736682
C161: 03/19/2012 | D161: 06:23:52 | E161: 19:52:01.715 | F161: 10.53035692 | G161: 10322 | H161: =IF($B$10=1,IF(MATCH($L161,DATE(YEAR($L161),{1,3,11},{1,15,8})-WEEKDAY(DATE(YEAR($L161),{1,3,11},7)))=2,1,0),0) -> 1 | I161: 1.119464295 | J161: 19:52:01.715 | K161: 13:23:51.703 | L161: 2012-03-19 | M161: 07:10:18.441 | N161: 19:10:46.752 | O161: 78 | P161: 19:52:01.715 | Q161: 10.53027439 | R161: 0 | S161: 10.53027439
C162: 03/20/2012 | D162: 06:22:15 | E162: 19:53:01.970 | F162: 10.48667493 | G162: 10382 | H162: =IF($B$10=1,IF(MATCH($L162,DATE(YEAR($L162),{1,3,11},{1,15,8})-WEEKDAY(DATE(YEAR($L162),{1,3,11},7)))=2,1,0),0) -> 1 | I162: 1.120161693 | J162: 19:53:01.970 | K162: 13:22:15.416 | L162: 2012-03-20 | M162: 07:08:43.952 | N162: 19:11:45.671 | O162: 79 | P162: 19:53:01.970 | Q162: 10.48679046 | R162: 0 | S162: 10.48679046
C163: 03/21/2012 | D163: 06:20:39 | E163: 19:54:02.274 | F163: 10.44325715 | G163: 10442 | H163: =IF($B$10=1,IF(MATCH($L163,DATE(YEAR($L163),{1,3,11},{1,15,8})-WEEKDAY(DATE(YEAR($L163),{1,3,11},7)))=2,1,0),0) -> 1 | I163: 1.120859656 | J163: 19:54:02.274 | K163: 13:20:38.872 | L163: 2012-03-21 | M163: 07:07:09.431 | N163: 19:12:44.439 | O163: 80 | P163: 19:54:02.274 | Q163: 10.44322172 | R163: 0 | S163: 10.44322172
C164: 03/22/2012 | D164: 06:19:02 | E164: 19:55:02.638 | F164: 10.39954509 | G164: 10503 | H164: =IF($B$10=1,IF(MATCH($L164,DATE(YEAR($L164),{1,3,11},{1,15,8})-WEEKDAY(DATE(YEAR($L164),{1,3,11},7)))=2,1,0),0) -> 1 | I164: 1.121558306 | J164: 19:55:02.638 | K164: 13:19:02.102 | L164: 2012-03-22 | M164: 07:05:34.908 | N164: 19:13:43.067 | O164: 81 | P164: 19:55:02.638 | Q164: 10.39957354 | R164: 0 | S164: 10.39957354
C165: 03/23/2012 | D165: 06:17:25 | E165: 19:56:03.071 | F165: 10.35581369 | G165: 10563 | H165: =IF($B$10=1,IF(MATCH($L165,DATE(YEAR($L165),{1,3,11},{1,15,8})-WEEKDAY(DATE(YEAR($L165),{1,3,11},7)))=2,1,0),0) -> 1 | I165: 1.122257763 | J165: 19:56:03.071 | K165: 13:17:25.135 | L165: 2012-03-23 | M165: 07:04:00.414 | N165: 19:14:41.566 | O165: 82 | P165: 19:56:03.071 | Q165: 10.3558513 | R165: 0 | S165: 10.3558513
C166: 03/24/2012 | D166: 06:15:48 | E166: 19:57:03.584 | F166: 10.31206012 | G166: 10624 | H166: =IF($B$10=1,IF(MATCH($L166,DATE(YEAR($L166),{1,3,11},{1,15,8})-WEEKDAY(DATE(YEAR($L166),{1,3,11},7)))=2,1,0),0) -> 1 | I166: 1.122958143 | J166: 19:57:03.584 | K166: 13:15:48.001 | L166: 2012-03-24 | M166: 07:02:25.978 | N166: 19:15:39.945 | O166: 83 | P166: 19:57:03.584 | Q166: 10.3120605 | R166: 0 | S166: 10.3120605
C167: 03/25/2012 | D167: 06:14:11 | E167: 19:58:04.186 | F167: 10.26828166 | G167: 10684 | H167: =IF($B$10=1,IF(MATCH($L167,DATE(YEAR($L167),{1,3,11},{1,15,8})-WEEKDAY(DATE(YEAR($L167),{1,3,11},7)))=2,1,0),0) -> 1 | I167: 1.12365956 | J167: 19:58:04.186 | K167: 13:14:10.730 | L167: 2012-03-25 | M167: 07:00:51.629 | N167: 19:16:38.215 | O167: 84 | P167: 19:58:04.186 | Q167: 10.26820669 | R167: 0 | S167: 10.26820669
C168: 03/26/2012 | D168: 06:12:33 | E168: 19:59:04.888 | F168: 10.22419788 | G168: 10745 | H168: =IF($B$10=1,IF(MATCH($L168,DATE(YEAR($L168),{1,3,11},{1,15,8})-WEEKDAY(DATE(YEAR($L168),{1,3,11},7)))=2,1,0),0) -> 1 | I168: 1.124362126 | J168: 19:59:04.888 | K168: 13:12:33.351 | L168: 2012-03-26 | M168: 06:59:17.397 | N168: 19:17:36.386 | O168: 85 | P168: 19:59:04.888 | Q168: 10.2242955 | R168: 0 | S168: 10.2242955
C169: 03/27/2012 | D169: 06:10:56 | E169: 20:00:05.698 | F169: 10.18036175 | G169: 10806 | H169: =IF($B$10=1,IF(MATCH($L169,DATE(YEAR($L169),{1,3,11},{1,15,8})-WEEKDAY(DATE(YEAR($L169),{1,3,11},7)))=2,1,0),0) -> 1 | I169: 1.125065946 | J169: 20:00:05.698 | K169: 13:10:55.895 | L169: 2012-03-27 | M169: 06:57:43.312 | N169: 19:18:34.467 | O169: 86 | P169: 20:00:05.698 | Q169: 10.1803327 | R169: 0 | S169: 10.1803327
C170: 03/28/2012 | D170: 06:09:18 | E170: 20:01:06.625 | F170: 10.13621526 | G170: 10867 | H170: =IF($B$10=1,IF(MATCH($L170,DATE(YEAR($L170),{1,3,11},{1,15,8})-WEEKDAY(DATE(YEAR($L170),{1,3,11},7)))=2,1,0),0) -> 1 | I170: 1.125771124 | J170: 20:01:06.625 | K170: 13:09:18.392 | L170: 2012-03-28 | M170: 06:56:09.403 | N170: 19:19:32.467 | O170: 87 | P170: 20:01:06.625 | Q170: 10.13632413 | R170: 0 | S170: 10.13632413
C171: 03/29/2012 | D171: 06:07:41 | E171: 20:02:07.678 | F171: 10.09231158 | G171: 10928 | H171: =IF($B$10=1,IF(MATCH($L171,DATE(YEAR($L171),{1,3,11},{1,15,8})-WEEKDAY(DATE(YEAR($L171),{1,3,11},7)))=2,1,0),0) -> 1 | I171: 1.126477758 | J171: 20:02:07.678 | K171: 13:07:40.871 | L171: 2012-03-29 | M171: 06:54:35.699 | N171: 19:20:30.397 | O171: 88 | P171: 20:02:07.678 | Q171: 10.0922758 | R171: 0 | S171: 10.0922758
C172: 03/30/2012 | D172: 06:06:03 | E172: 20:03:08.866 | F172: 10.04809291 | G172: 10989 | H172: =IF($B$10=1,IF(MATCH($L172,DATE(YEAR($L172),{1,3,11},{1,15,8})-WEEKDAY(DATE(YEAR($L172),{1,3,11},7)))=2,1,0),0) -> 1 | I172: 1.127185943 | J172: 20:03:08.866 | K172: 13:06:03.363 | L172: 2012-03-30 | M172: 06:53:02.231 | N172: 19:21:28.264 | O172: 89 | P172: 20:03:08.866 | Q172: 10.04819384 | R172: 0 | S172: 10.04819384
C173: 03/31/2012 | D173: 06:04:26 | E173: 20:04:10.194 | F173: 10.00411268 | G173: 11050 | H173: =IF($B$10=1,IF(MATCH($L173,DATE(YEAR($L173),{1,3,11},{1,15,8})-WEEKDAY(DATE(YEAR($L173),{1,3,11},7)))=2,1,0),0) -> 1 | I173: 1.127895768 | J173: 20:04:10.194 | K173: 13:04:25.899 | L173: 2012-03-31 | M173: 06:51:29.026 | N173: 19:22:26.077 | O173: 90 | P173: 20:04:10.194 | Q173: 10.00408453 | R173: 0 | S173: 10.00408453
C174: 04/01/2012 | D174: 06:02:49 | E174: 20:05:11.672 | F174: 9.960091092 | G174: 11112 | H174: =IF($B$10=1,IF(MATCH($L174,DATE(YEAR($L174),{1,3,11},{1,15,8})-WEEKDAY(DATE(YEAR($L174),{1,3,11},7)))=2,1,0),0) -> 1 | I174: 1.128607316 | J174: 20:05:11.672 | K174: 13:02:48.508 | L174: 2012-04-01 | M174: 06:49:56.115 | N174: 19:23:23.845 | O174: 91 | P174: 20:05:11.672 | Q174: 9.959954329 | R174: 0 | S174: 9.959954329
C175: 04/02/2012 | D175: 06:01:11 | E175: 20:06:13.305 | F175: 9.915748521 | G175: 11173 | H175: =IF($B$10=1,IF(MATCH($L175,DATE(YEAR($L175),{1,3,11},{1,15,8})-WEEKDAY(DATE(YEAR($L175),{1,3,11},7)))=2,1,0),0) -> 1 | I175: 1.129320663 | J175: 20:06:13.305 | K175: 13:01:11.221 | L175: 2012-04-02 | M175: 06:48:23.527 | N175: 19:24:21.575 | O175: 92 | P175: 20:06:13.305 | Q175: 9.915809859 | R175: 0 | S175: 9.915809859
C176: 04/03/2012 | D176: 05:59:34 | E176: 20:07:15.100 | F176: 9.871638806 | G176: 11235 | H176: =IF($B$10=1,IF(MATCH($L176,DATE(YEAR($L176),{1,3,11},{1,15,8})-WEEKDAY(DATE(YEAR($L176),{1,3,11},7)))=2,1,0),0) -> 1 | I176: 1.130035883 | J176: 20:07:15.100 | K176: 12:59:34.069 | L176: 2012-04-03 | M176: 06:46:51.292 | N176: 19:25:19.274 | O176: 93 | P176: 20:07:15.100 | Q176: 9.871657943 | R176: 0 | S176: 9.871657943
C177: 04/04/2012 | D177: 05:57:57 | E177: 20:08:17.063 | F177: 9.827482615 | G177: 11297 | H177: =IF($B$10=1,IF(MATCH($L177,DATE(YEAR($L177),{1,3,11},{1,15,8})-WEEKDAY(DATE(YEAR($L177),{1,3,11},7)))=2,1,0),0) -> 1 | I177: 1.130753039 | J177: 20:08:17.063 | K177: 12:57:57.083 | L177: 2012-04-04 | M177: 06:45:19.438 | N177: 19:26:16.950 | O177: 94 | P177: 20:08:17.063 | Q177: 9.827505604 | R177: 0 | S177: 9.827505604
C178: 04/05/2012 | D178: 05:56:20 | E178: 20:09:19.197 | F178: 9.78327856 | G178: 11359 | H178: =IF($B$10=1,IF(MATCH($L178,DATE(YEAR($L178),{1,3,11},{1,15,8})-WEEKDAY(DATE(YEAR($L178),{1,3,11},7)))=2,1,0),0) -> 1 | I178: 1.13147219 | J178: 20:09:19.197 | K178: 12:56:20.293 | L178: 2012-04-05 | M178: 06:43:47.996 | N178: 19:27:14.609 | O178: 95 | P178: 20:09:19.197 | Q178: 9.78336008 | R178: 0 | S178: 9.78336008
C179: 04/06/2012 | D179: 05:54:44 | E179: 20:10:21.508 | F179: 9.739303208 | G179: 11422 | H179: =IF($B$10=1,IF(MATCH($L179,DATE(YEAR($L179),{1,3,11},{1,15,8})-WEEKDAY(DATE(YEAR($L179),{1,3,11},7)))=2,1,0),0) -> 1 | I179: 1.132193385 | J179: 20:10:21.508 | K179: 12:54:43.732 | L179: 2012-04-06 | M179: 06:42:16.994 | N179: 19:28:12.257 | O179: 96 | P179: 20:10:21.508 | Q179: 9.739228837 | R179: 0 | S179: 9.739228837
C180: 04/07/2012 | D180: 05:53:07 | E180: 20:11:24 | F180: 9.694999977 | G180: 11484 | H180: =IF($B$10=1,IF(MATCH($L180,DATE(YEAR($L180),{1,3,11},{1,15,8})-WEEKDAY(DATE(YEAR($L180),{1,3,11},7)))=2,1,0),0) -> 1 | I180: 1.132916668 | J180: 20:11:24 | K180: 12:53:07.431 | L180: 2012-04-07 | M180: 06:40:46.463 | N180: 19:29:09.899 | O180: 97 | P180: 20:11:24 | Q180: 9.695119582 | R180: 0 | S180: 9.695119582
C181: 04/08/2012 | D181: 05:51:31 | E181: 20:12:26.675 | F181: 9.650923593 | G181: 11547 | H181: =IF($B$10=1,IF(MATCH($L181,DATE(YEAR($L181),{1,3,11},{1,15,8})-WEEKDAY(DATE(YEAR($L181),{1,3,11},7)))=2,1,0),0) -> 1 | I181: 1.133642073 | J181: 20:12:26.675 | K181: 12:51:31.420 | L181: 2012-04-08 | M181: 06:39:16.431 | N181: 19:30:07.540 | O181: 98 | P181: 20:12:26.675 | Q181: 9.651040276 | R181: 0 | S181: 9.651040276
C182: 04/09/2012 | D182: 05:49:56 | E182: 20:13:29.536 | F182: 9.607073427 | G182: 11610 | H182: =IF($B$10=1,IF(MATCH($L182,DATE(YEAR($L182),{1,3,11},{1,15,8})-WEEKDAY(DATE(YEAR($L182),{1,3,11},7)))=2,1,0),0) -> 1 | I182: 1.134369626 | J182: 20:13:29.536 | K182: 12:49:55.733 | L182: 2012-04-09 | M182: 06:37:46.929 | N182: 19:31:05.185 | O182: 99 | P182: 20:13:29.536 | Q182: 9.606999143 | R182: 0 | S182: 9.606999143
C183: 04/10/2012 | D183: 05:48:20 | E183: 20:14:32.583 | F183: 9.562893511 | G183: 11673 | H183: =IF($B$10=1,IF(MATCH($L183,DATE(YEAR($L183),{1,3,11},{1,15,8})-WEEKDAY(DATE(YEAR($L183),{1,3,11},7)))=2,1,0),0) -> 1 | I183: 1.135099344 | J183: 20:14:32.583 | K183: 12:48:20.400 | L183: 2012-04-10 | M183: 06:36:17.986 | N183: 19:32:02.837 | O183: 100 | P183: 20:14:32.583 | Q183: 9.563004684 | R183: 0 | S183: 9.563004684
C184: 04/11/2012 | D184: 05:46:45 | E184: 20:15:35.819 | F184: 9.518939208 | G184: 11736 | H184: =IF($B$10=1,IF(MATCH($L184,DATE(YEAR($L184),{1,3,11},{1,15,8})-WEEKDAY(DATE(YEAR($L184),{1,3,11},7)))=2,1,0),0) -> 1 | I184: 1.135831237 | J184: 20:15:35.819 | K184: 12:46:45.455 | L184: 2012-04-11 | M184: 06:34:49.632 | N184: 19:33:00.499 | O184: 101 | P184: 20:15:35.819 | Q184: 9.51906569 | R184: 0 | S184: 9.51906569
C185: 04/12/2012 | D185: 05:45:11 | E185: 20:16:39.242 | F185: 9.47521056 | G185: 11799 | H185: =IF($B$10=1,IF(MATCH($L185,DATE(YEAR($L185),{1,3,11},{1,15,8})-WEEKDAY(DATE(YEAR($L185),{1,3,11},7)))=2,1,0),0) -> 1 | I185: 1.136565301 | J185: 20:16:39.242 | K185: 12:45:10.930 | L185: 2012-04-12 | M185: 06:33:21.896 | N185: 19:33:58.173 | O185: 102 | P185: 20:16:39.242 | Q185: 9.475191254 | R185: 0 | S185: 9.475191254
C186: 04/13/2012 | D186: 05:43:37 | E186: 20:17:42.852 | F186: 9.431430072 | G186: 11863 | H186: =IF($B$10=1,IF(MATCH($L186,DATE(YEAR($L186),{1,3,11},{1,15,8})-WEEKDAY(DATE(YEAR($L186),{1,3,11},7)))=2,1,0),0) -> 1 | I186: 1.137301525 | J186: 20:17:42.852 | K186: 12:43:36.859 | L186: 2012-04-13 | M186: 06:31:54.809 | N186: 19:34:55.861 | O186: 103 | P186: 20:17:42.852 | Q186: 9.43139078 | R186: 0 | S186: 9.43139078
C187: 04/14/2012 | D187: 05:42:03 | E187: 20:18:46.646 | F187: 9.387598278 | G187: 11927 | H187: =IF($B$10=1,IF(MATCH($L187,DATE(YEAR($L187),{1,3,11},{1,15,8})-WEEKDAY(DATE(YEAR($L187),{1,3,11},7)))=2,1,0),0) -> 1 | I187: 1.138039887 | J187: 20:18:46.646 | K187: 12:42:03.273 | L187: 2012-04-14 | M187: 06:30:28.400 | N187: 19:35:53.565 | O187: 104 | P187: 20:18:46.646 | Q187: 9.387673996 | R187: 0 | S187: 9.387673996
C188: 04/15/2012 | D188: 05:40:30 | E188: 20:19:50.622 | F188: 9.34399375 | G188: 11991 | H188: =IF($B$10=1,IF(MATCH($L188,DATE(YEAR($L188),{1,3,11},{1,15,8})-WEEKDAY(DATE(YEAR($L188),{1,3,11},7)))=2,1,0),0) -> 1 | I188: 1.138780353 | J188: 20:19:50.622 | K188: 12:40:30.206 | L188: 2012-04-15 | M188: 06:29:02.699 | N188: 19:36:51.283 | O188: 105 | P188: 20:19:50.622 | Q188: 9.344050965 | R188: 0 | S188: 9.344050965
C189: 04/16/2012 | D189: 05:38:58 | E189: 20:20:54.777 | F189: 9.300617553 | G189: 12055 | H189: =IF($B$10=1,IF(MATCH($L189,DATE(YEAR($L189),{1,3,11},{1,15,8})-WEEKDAY(DATE(YEAR($L189),{1,3,11},7)))=2,1,0),0) -> 1 | I189: 1.13952288 | J189: 20:20:54.777 | K189: 12:38:57.692 | L189: 2012-04-16 | M189: 06:27:37.737 | N189: 19:37:49.017 | O189: 106 | P189: 20:20:54.777 | Q189: 9.300532098 | R189: 0 | S189: 9.300532098
C190: 04/17/2012 | D190: 05:37:26 | E190: 20:21:59.104 | F190: 9.257193254 | G190: 12119 | H190: =IF($B$10=1,IF(MATCH($L190,DATE(YEAR($L190),{1,3,11},{1,15,8})-WEEKDAY(DATE(YEAR($L190),{1,3,11},7)))=2,1,0),0) -> 1 | I190: 1.140267411 | J190: 20:21:59.104 | K190: 12:37:25.766 | L190: 2012-04-17 | M190: 06:26:13.542 | N190: 19:38:46.763 | O190: 107 | P190: 20:21:59.104 | Q190: 9.25712816 | R190: 0 | S190: 9.25712816
C191: 04/18/2012 | D191: 05:35:54 | E191: 20:23:03.599 | F191: 9.213722485 | G191: 12184 | H191: =IF($B$10=1,IF(MATCH($L191,DATE(YEAR($L191),{1,3,11},{1,15,8})-WEEKDAY(DATE(YEAR($L191),{1,3,11},7)))=2,1,0),0) -> 1 | I191: 1.141013878 | J191: 20:23:03.599 | K191: 12:35:54.460 | L191: 2012-04-18 | M191: 06:24:50.146 | N191: 19:39:44.520 | O191: 108 | P191: 20:23:03.599 | Q191: 9.213850283 | R191: 0 | S191: 9.213850283
C192: 04/19/2012 | D192: 05:34:24 | E192: 20:24:08.254 | F192: 9.170762733 | G192: 12248 | H192: =IF($B$10=1,IF(MATCH($L192,DATE(YEAR($L192),{1,3,11},{1,15,8})-WEEKDAY(DATE(YEAR($L192),{1,3,11},7)))=2,1,0),0) -> 1 | I192: 1.141762201 | J192: 20:24:08.254 | K192: 12:34:23.810 | L192: 2012-04-19 | M192: 06:23:27.579 | N192: 19:40:42.285 | O192: 109 | P192: 20:24:08.254 | Q192: 9.170709977 | R192: 0 | S192: 9.170709977
C193: 04/20/2012 | D193: 05:32:54 | E193: 20:25:13.062 | F193: 9.127760681 | G193: 12313 | H193: =IF($B$10=1,IF(MATCH($L193,DATE(YEAR($L193),{1,3,11},{1,15,8})-WEEKDAY(DATE(YEAR($L193),{1,3,11},7)))=2,1,0),0) -> 1 | I193: 1.142512286 | J193: 20:25:13.062 | K193: 12:32:53.850 | L193: 2012-04-20 | M193: 06:22:05.870 | N193: 19:41:40.054 | O193: 110 | P193: 20:25:13.062 | Q193: 9.127719133 | R193: 0 | S193: 9.127719133
C194: 04/21/2012 | D194: 05:31:25 | E194: 20:26:18.012 | F194: 9.084996661 | G194: 12378 | H194: =IF($B$10=1,IF(MATCH($L194,DATE(YEAR($L194),{1,3,11},{1,15,8})-WEEKDAY(DATE(YEAR($L194),{1,3,11},7)))=2,1,0),0) -> 1 | I194: 1.143264028 | J194: 20:26:18.012 | K194: 12:31:24.616 | L194: 2012-04-21 | M194: 06:20:45.050 | N194: 19:42:37.821 | O194: 111 | P194: 20:26:18.012 | Q194: 9.084890042 | R194: 0 | S194: 9.084890042
C195: 04/22/2012 | D195: 05:29:56 | E195: 20:27:23.095 | F195: 9.042195773 | G195: 12443 | H195: =IF($B$10=1,IF(MATCH($L195,DATE(YEAR($L195),{1,3,11},{1,15,8})-WEEKDAY(DATE(YEAR($L195),{1,3,11},7)))=2,1,0),0) -> 1 | I195: 1.144017306 | J195: 20:27:23.095 | K195: 12:29:56.143 | L195: 2012-04-22 | M195: 06:19:25.149 | N195: 19:43:35.581 | O195: 112 | P195: 20:27:23.095 | Q195: 9.042235392 | R195: 0 | S195: 9.042235392
C196: 04/23/2012 | D196: 05:28:28 | E196: 20:28:28.300 | F196: 8.999639007 | G196: 12508 | H196: =IF($B$10=1,IF(MATCH($L196,DATE(YEAR($L196),{1,3,11},{1,15,8})-WEEKDAY(DATE(YEAR($L196),{1,3,11},7)))=2,1,0),0) -> 1 | I196: 1.144771986 | J196: 20:28:28.300 | K196: 12:28:28.465 | L196: 2012-04-23 | M196: 06:18:06.198 | N196: 19:44:33.328 | O196: 113 | P196: 20:28:28.300 | Q196: 8.999768281 | R196: 0 | S196: 8.999768281
C197: 04/24/2012 | D197: 05:27:02 | E197: 20:29:33.612 | F197: 8.957607693 | G197: 12574 | H197: =IF($B$10=1,IF(MATCH($L197,DATE(YEAR($L197),{1,3,11},{1,15,8})-WEEKDAY(DATE(YEAR($L197),{1,3,11},7)))=2,1,0),0) -> 1 | I197: 1.14552792 | J197: 20:29:33.612 | K197: 12:27:01.620 | L197: 2012-04-24 | M197: 06:16:48.225 | N197: 19:45:31.053 | O197: 114 | P197: 20:29:33.612 | Q197: 8.957502226 | R197: 0 | S197: 8.957502226
C198: 04/25/2012 | D198: 05:25:36 | E198: 20:30:39.019 | F198: 8.915550178 | G198: 12639 | H198: =IF($B$10=1,IF(MATCH($L198,DATE(YEAR($L198),{1,3,11},{1,15,8})-WEEKDAY(DATE(YEAR($L198),{1,3,11},7)))=2,1,0),0) -> 1 | I198: 1.146284946 | J198: 20:30:39.019 | K198: 12:25:35.644 | L198: 2012-04-25 | M198: 06:15:31.262 | N198: 19:46:28.747 | O198: 115 | P198: 20:30:39.019 | Q198: 8.915451162 | R198: 0 | S198: 8.915451162
C199: 04/26/2012 | D199: 05:24:11 | E199: 20:31:44.505 | F199: 8.873748496 | G199: 12705 | H199: =IF($B$10=1,IF(MATCH($L199,DATE(YEAR($L199),{1,3,11},{1,15,8})-WEEKDAY(DATE(YEAR($L199),{1,3,11},7)))=2,1,0),0) -> 1 | I199: 1.147042887 | J199: 20:31:44.505 | K199: 12:24:10.571 | L199: 2012-04-26 | M199: 06:14:15.339 | N199: 19:47:26.401 | O199: 116 | P199: 20:31:44.505 | Q199: 8.873629454 | R199: 0 | S199: 8.873629454
C200: 04/27/2012 | D200: 05:22:46 | E200: 20:32:50.054 | F200: 8.83192949 | G200: 12770 | H200: =IF($B$10=1,IF(MATCH($L200,DATE(YEAR($L200),{1,3,11},{1,15,8})-WEEKDAY(DATE(YEAR($L200),{1,3,11},7)))=2,1,0),0) -> 1 | I200: 1.147801549 | J200: 20:32:50.054 | K200: 12:22:46.441 | L200: 2012-04-27 | M200: 06:13:00.485 | N200: 19:48:24.003 | O200: 117 | P200: 20:32:50.054 | Q200: 8.832051893 | R200: 0 | S200: 8.832051893
C201: 04/28/2012 | D201: 05:21:23 | E201: 20:33:55.647 | F201: 8.790653707 | G201: 12836 | H201: =IF($B$10=1,IF(MATCH($L201,DATE(YEAR($L201),{1,3,11},{1,15,8})-WEEKDAY(DATE(YEAR($L201),{1,3,11},7)))=2,1,0),0) -> 1 | I201: 1.148560725 | J201: 20:33:55.647 | K201: 12:21:23.288 | L201: 2012-04-28 | M201: 06:11:46.731 | N201: 19:49:21.542 | O201: 118 | P201: 20:33:55.647 | Q201: 8.79073371 | R201: 0 | S201: 8.79073371
C202: 04/29/2012 | D202: 05:20:01 | E202: 20:35:01.265 | F202: 8.749648733 | G202: 12901 | H202: =IF($B$10=1,IF(MATCH($L202,DATE(YEAR($L202),{1,3,11},{1,15,8})-WEEKDAY(DATE(YEAR($L202),{1,3,11},7)))=2,1,0),0) -> 1 | I202: 1.149320192 | J202: 20:35:01.265 | K202: 12:20:01.151 | L202: 2012-04-29 | M202: 06:10:34.106 | N202: 19:50:19.005 | O202: 119 | P202: 20:35:01.265 | Q202: 8.749690566 | R202: 0 | S202: 8.749690566
C203: 04/30/2012 | D203: 05:18:40 | E203: 20:36:06.887 | F203: 8.708920315 | G203: 12967 | H203: =IF($B$10=1,IF(MATCH($L203,DATE(YEAR($L203),{1,3,11},{1,15,8})-WEEKDAY(DATE(YEAR($L203),{1,3,11},7)))=2,1,0),0) -> 1 | I203: 1.150079709 | J203: 20:36:06.887 | K203: 12:18:40.066 | L203: 2012-04-30 | M203: 06:09:22.640 | N203: 19:51:16.378 | O203: 120 | P203: 20:36:06.887 | Q203: 8.708938561 | R203: 0 | S203: 8.708938561
C204: 05/01/2012 | D204: 05:17:20 | E204: 20:37:12.492 | F204: 8.668474583 | G204: 13032 | H204: =IF($B$10=1,IF(MATCH($L204,DATE(YEAR($L204),{1,3,11},{1,15,8})-WEEKDAY(DATE(YEAR($L204),{1,3,11},7)))=2,1,0),0) -> 1 | I204: 1.150839022 | J204: 20:37:12.492 | K204: 12:17:20.071 | L204: 2012-05-01 | M204: 06:08:12.363 | N204: 19:52:13.645 | O204: 121 | P204: 20:37:12.492 | Q204: 8.66849423 | R204: 0 | S204: 8.66849423
C205: 05/02/2012 | D205: 05:16:01 | E205: 20:38:18.055 | F205: 8.628318057 | G205: 13098 | H205: =IF($B$10=1,IF(MATCH($L205,DATE(YEAR($L205),{1,3,11},{1,15,8})-WEEKDAY(DATE(YEAR($L205),{1,3,11},7)))=2,1,0),0) -> 1 | I205: 1.151597859 | J205: 20:38:18.055 | K205: 12:16:01.203 | L205: 2012-05-02 | M205: 06:07:03.304 | N205: 19:53:10.790 | O205: 122 | P205: 20:38:18.055 | Q205: 8.628374544 | R205: 0 | S205: 8.628374544
C206: 05/03/2012 | D206: 05:14:44 | E206: 20:39:23.552 | F206: 8.588735425 | G206: 13164 | H206: =IF($B$10=1,IF(MATCH($L206,DATE(YEAR($L206),{1,3,11},{1,15,8})-WEEKDAY(DATE(YEAR($L206),{1,3,11},7)))=2,1,0),0) -> 1 | I206: 1.152355931 | J206: 20:39:23.552 | K206: 12:14:43.501 | L206: 2012-05-03 | M206: 06:05:55.492 | N206: 19:54:07.795 | O206: 123 | P206: 20:39:23.552 | Q206: 8.588596901 | R206: 0 | S206: 8.588596901
C207: 05/04/2012 | D207: 05:13:27 | E207: 20:40:28.958 | F207: 8.549178438 | G207: 13229 | H207: =IF($B$10=1,IF(MATCH($L207,DATE(YEAR($L207),{1,3,11},{1,15,8})-WEEKDAY(DATE(YEAR($L207),{1,3,11},7)))=2,1,0),0) -> 1 | I207: 1.153112935 | J207: 20:40:28.958 | K207: 12:13:27.002 | L207: 2012-05-04 | M207: 06:04:48.956 | N207: 19:55:04.643 | O207: 124 | P207: 20:40:28.958 | Q207: 8.549179127 | R207: 0 | S207: 8.549179127
C208: 05/05/2012 | D208: 05:12:12 | E208: 20:41:34.243 | F208: 8.510210351 | G208: 13294 | H208: =IF($B$10=1,IF(MATCH($L208,DATE(YEAR($L208),{1,3,11},{1,15,8})-WEEKDAY(DATE(YEAR($L208),{1,3,11},7)))=2,1,0),0) -> 1 | I208: 1.15386855 | J208: 20:41:34.243 | K208: 12:12:11.745 | L208: 2012-05-05 | M208: 06:03:43.726 | N208: 19:56:01.312 | O208: 125 | P208: 20:41:34.243 | Q208: 8.510139468 | R208: 0 | S208: 8.510139468
C209: 05/06/2012 | D209: 05:10:58 | E209: 20:42:39.379 | F209: 8.471561483 | G209: 13359 | H209: =IF($B$10=1,IF(MATCH($L209,DATE(YEAR($L209),{1,3,11},{1,15,8})-WEEKDAY(DATE(YEAR($L209),{1,3,11},7)))=2,1,0),0) -> 1 | I209: 1.154622438 | J209: 20:42:39.379 | K209: 12:10:57.766 | L209: 2012-05-06 | M209: 06:02:39.828 | N209: 19:56:57.783 | O209: 126 | P209: 20:42:39.379 | Q209: 8.47149658 | R209: 0 | S209: 8.47149658
C210: 05/07/2012 | D210: 05:09:45 | E210: 20:43:44.335 | F210: 8.433240323 | G210: 13424 | H210: =IF($B$10=1,IF(MATCH($L210,DATE(YEAR($L210),{1,3,11},{1,15,8})-WEEKDAY(DATE(YEAR($L210),{1,3,11},7)))=2,1,0),0) -> 1 | I210: 1.155374246 | J210: 20:43:44.335 | K210: 12:09:45.105 | L210: 2012-05-07 | M210: 06:01:37.292 | N210: 19:57:54.034 | O210: 127 | P210: 20:43:44.335 | Q210: 8.433269522 | R210: 0 | S210: 8.433269522
C211: =TEXT(L211,"mm/dd/yyyy") -> 05/08/2012 | D211: =TEXT(dawn($B$4,$B$5,YEAR($C211+1),MONTH($C211+1),DAY($C211+1),$B$9,$H211,$D$6),"hh:mm:ss") -> 05:08:34 | E211: =dusk($B$4,$B$5,YEAR(C211),MONTH(C211),DAY(C211),$B$9,$H211,$D$5) -> 20:44:49.079 | F211: =((TIME(23,59,59.999)-E211)+D211)*24 -> 8.395533532 | G211: 13489 | H211: =IF($B$10=1,IF(MATCH($L211,DATE(YEAR($L211),{1,3,11},{1,15,8})-WEEKDAY(DATE(YEAR($L211),{1,3,11},7)))=2,1,0),0) -> 1 | I211: =dusk($B$4,$B$5,YEAR($C211),MONTH($C211),DAY($C211),0,0,$D$5) -> 1.156123603 | J211: =dusk($B$4,$B$5,YEAR($C211),MONTH($C211),DAY($C211),$B$9,$H211,$D$5) -> 20:44:49.079 | K211: 12:08:33.799 | L211: 2012-05-08 | M211: 06:00:36.145 | N211: 19:58:50.040 | O211: 128 | P211: 20:44:49.079 | Q211: 8.395477739 | R211: 0 | S211: 8.395477739
C212: 05/09/2012 | D212: 05:07:24 | E212: 20:45:53.579 | F212: 8.358172605 | G212: =HOUR(E212-$C$77)*3600+MINUTE(E212-$C$77)*60+SECOND(E212-$C$77) -> 13554 | H212: =IF($B$10=1,IF(MATCH($L212,DATE(YEAR($L212),{1,3,11},{1,15,8})-WEEKDAY(DATE(YEAR($L212),{1,3,11},7)))=2,1,0),0) -> 1 | I212: 1.156870123 | J212: 20:45:53.579 | K212: =dawn($B$4,$B$5,YEAR($C212+1),MONTH($C212+1),DAY($C212+1),0,0,$D$6) -> 12:07:23.886 | L212: 2012-05-09 | M212: =dawn($B$4,$B$5,YEAR($C212+1),MONTH($C212+1),DAY($C212+1),$B$9,$H212,0) -> 05:59:36.415 | N212: =dusk($B$4,$B$5,YEAR(C212),MONTH(C212),DAY(C212),$B$9,$H212,0) -> 19:59:45.779 | O212: 129 | P212: =MIN(dusk($B$4,$B$5,YEAR(C212),MONTH(C212),DAY(C212),0,0,$D$5),E212) -> 20:45:53.579 | Q212: =IF(I212>K212,((TIME(23,59,59.999)-I212)+K212)*24,(K212-I212)*24) -> 8.358141058 | R212: =(E212-J212)*24 -> 0 | S212: =(Q212-R212) -> 8.358141058
C213: 05/10/2012 | D213: 05:06:15 | E213: 20:46:57.798 | F213: 8.3211672 | G213: 13618 | H213: =IF($B$10=1,IF(MATCH($L213,DATE(YEAR($L213),{1,3,11},{1,15,8})-WEEKDAY(DATE(YEAR($L213),{1,3,11},7)))=2,1,0),0) -> 1 | I213: 1.157613404 | J213: 20:46:57.798 | K213: 12:06:15.405 | L213: =L212+1 -> 2012-05-10 | M213: 05:58:38.128 | N213: 20:00:41.225 | O213: =O212+1 -> 130 | P213: 20:46:57.798 | Q213: 8.321279661 | R213: 0 | S213: 8.321279661
C214: 05/11/2012 | D214: 05:05:08 | E214: 20:48:01.702 | F214: 8.284805132 | G214: 13682 | H214: =IF($B$10=1,IF(MATCH($L214,DATE(YEAR($L214),{1,3,11},{1,15,8})-WEEKDAY(DATE(YEAR($L214),{1,3,11},7)))=2,1,0),0) -> 1 | I214: 1.158353027 | J214: 20:48:01.702 | K214: 12:05:08.392 | L214: 2012-05-11 | M214: 05:57:41.311 | N214: 20:01:36.350 | O214: 131 | P214: 20:48:01.702 | Q214: 8.284914077 | R214: 0 | S214: 8.284914077
C215: 05/12/2012 | D215: 05:04:03 | E215: 20:49:05.251 | F215: 8.249096811 | G215: 13745 | H215: =IF($B$10=1,IF(MATCH($L215,DATE(YEAR($L215),{1,3,11},{1,15,8})-WEEKDAY(DATE(YEAR($L215),{1,3,11},7)))=2,1,0),0) -> 1 | I215: 1.159088559 | J215: 20:49:05.251 | K215: 12:04:02.886 | L215: 2012-05-12 | M215: 05:56:45.990 | N215: 20:02:31.129 | O215: 132 | P215: 20:49:05.251 | Q215: 8.249065156 | R215: 0 | S215: 8.249065156
C216: 05/13/2012 | D216: 05:02:59 | E216: 20:50:08.409 | F216: 8.213775235 | G216: 13808 | H216: =IF($B$10=1,IF(MATCH($L216,DATE(YEAR($L216),{1,3,11},{1,15,8})-WEEKDAY(DATE(YEAR($L216),{1,3,11},7)))=2,1,0),0) -> 1 | I216: 1.15981955 | J216: 20:50:08.409 | K216: 12:02:58.924 | L216: 2012-05-13 | M216: 05:55:52.190 | N216: 20:03:25.532 | O216: 133 | P216: 20:50:08.409 | Q216: 8.213754048 | R216: 0 | S216: 8.213754048
C217: 05/14/2012 | D217: 05:01:57 | E217: 20:51:11.134 | F217: 8.179129312 | G217: 13871 | H217: =IF($B$10=1,IF(MATCH($L217,DATE(YEAR($L217),{1,3,11},{1,15,8})-WEEKDAY(DATE(YEAR($L217),{1,3,11},7)))=2,1,0),0) -> 1 | I217: 1.160545538 | J217: 20:51:11.134 | K217: 12:01:56.542 | L217: 2012-05-14 | M217: 05:54:59.936 | N217: 20:04:19.530 | O217: 134 | P217: 20:51:11.134 | Q217: 8.179002182 | R217: 0 | S217: 8.179002182
C218: 05/15/2012 | D218: 05:00:56 | E218: 20:52:13.386 | F218: 8.144892736 | G218: 13933 | H218: =IF($B$10=1,IF(MATCH($L218,DATE(YEAR($L218),{1,3,11},{1,15,8})-WEEKDAY(DATE(YEAR($L218),{1,3,11},7)))=2,1,0),0) -> 1 | I218: 1.161266043 | J218: 20:52:13.386 | K218: 12:00:55.779 | L218: 2012-05-15 | M218: 05:54:09.253 | N218: 20:05:13.092 | O218: 135 | P218: 20:52:13.386 | Q218: 8.144831237 | R218: 0 | S218: 8.144831237
C219: 05/16/2012 | D219: 04:59:57 | E219: 20:53:15.122 | F219: 8.111355092 | G219: 13995 | H219: =IF($B$10=1,IF(MATCH($L219,DATE(YEAR($L219),{1,3,11},{1,15,8})-WEEKDAY(DATE(YEAR($L219),{1,3,11},7)))=2,1,0),0) -> 1 | I219: 1.161980575 | J219: 20:53:15.122 | K219: 11:59:56.669 | L219: 2012-05-16 | M219: 05:53:20.163 | N219: 20:06:06.186 | O219: 136 | P219: 20:53:15.122 | Q219: 8.111263112 | R219: 0 | S219: 8.111263112
C220: 05/17/2012 | D220: 04:58:59 | E220: 20:54:16.297 | F220: 8.078250724 | G220: 14056 | H220: =IF($B$10=1,IF(MATCH($L220,DATE(YEAR($L220),{1,3,11},{1,15,8})-WEEKDAY(DATE(YEAR($L220),{1,3,11},7)))=2,1,0),0) -> 1 | I220: 1.162688627 | J220: 20:54:16.297 | K220: 11:58:59.249 | L220: 2012-05-17 | M220: 05:52:32.690 | N220: 20:06:58.781 | O220: 137 | P220: 20:54:16.297 | Q220: 8.078319898 | R220: 0 | S220: 8.078319898
C221: 05/18/2012 | D221: 04:58:04 | E221: 20:55:16.869 | F221: 8.046147611 | G221: 14117 | H221: =IF($B$10=1,IF(MATCH($L221,DATE(YEAR($L221),{1,3,11},{1,15,8})-WEEKDAY(DATE(YEAR($L221),{1,3,11},7)))=2,1,0),0) -> 1 | I221: 1.163389683 | J221: 20:55:16.869 | K221: 11:58:03.554 | L221: 2012-05-18 | M221: 05:51:46.856 | N221: 20:07:50.842 | O221: 138 | P221: 20:55:16.869 | Q221: 8.046023842 | R221: 0 | S221: 8.046023842
C222: 05/19/2012 | D222: 04:57:10 | E222: 20:56:16.790 | F222: 8.014502907 | G222: 14177 | H222: =IF($B$10=1,IF(MATCH($L222,DATE(YEAR($L222),{1,3,11},{1,15,8})-WEEKDAY(DATE(YEAR($L222),{1,3,11},7)))=2,1,0),0) -> 1 | I222: 1.164083212 | J222: 20:56:16.790 | K222: 11:57:09.620 | L222: 2012-05-19 | M222: 05:51:02.682 | N222: 20:08:42.337 | O222: 139 | P222: 20:56:16.790 | Q222: 8.014397313 | R222: 0 | S222: 8.014397313
C223: 05/20/2012 | D223: 04:56:17 | E223: 20:57:16.013 | F223: 7.983329586 | G223: 14236 | H223: =IF($B$10=1,IF(MATCH($L223,DATE(YEAR($L223),{1,3,11},{1,15,8})-WEEKDAY(DATE(YEAR($L223),{1,3,11},7)))=2,1,0),0) -> 1 | I223: 1.164768675 | J223: 20:57:16.013 | K223: 11:56:17.479 | L223: 2012-05-20 | M223: 05:50:20.189 | N223: 20:09:33.229 | O223: 140 | P223: 20:57:16.013 | Q223: 7.983462762 | R223: 0 | S223: 7.983462762
C224: 05/21/2012 | D224: 04:55:27 | E224: 20:58:14.493 | F224: 7.953196426 | G224: 14294 | H224: =IF($B$10=1,IF(MATCH($L224,DATE(YEAR($L224),{1,3,11},{1,15,8})-WEEKDAY(DATE(YEAR($L224),{1,3,11},7)))=2,1,0),0) -> 1 | I224: 1.165445519 | J224: 20:58:14.493 | K224: 11:55:27.167 | L224: 2012-05-21 | M224: 05:49:39.395 | N224: 20:10:23.482 | O224: 141 | P224: 20:58:14.493 | Q224: 7.953242685 | R224: 0 | S224: 7.953242685
C225: 05/22/2012 | D225: 04:54:39 | E225: 20:59:12.179 | F225: 7.923839094 | G225: 14352 | H225: =IF($B$10=1,IF(MATCH($L225,DATE(YEAR($L225),{1,3,11},{1,15,8})-WEEKDAY(DATE(YEAR($L225),{1,3,11},7)))=2,1,0),0) -> 1 | I225: 1.166113186 | J225: 20:59:12.179 | K225: 11:54:38.714 | L225: 2012-05-22 | M225: 05:49:00.320 | N225: 20:11:13.062 | O225: 142 | P225: 20:59:12.179 | Q225: 7.923759577 | R225: 0 | S225: 7.923759577
C226: 05/23/2012 | D226: 04:53:52 | E226: 21:00:09.024 | F226: 7.894993458 | G226: 14409 | H226: =IF($B$10=1,IF(MATCH($L226,DATE(YEAR($L226),{1,3,11},{1,15,8})-WEEKDAY(DATE(YEAR($L226),{1,3,11},7)))=2,1,0),0) -> 1 | I226: 1.166771106 | J226: 21:00:09.024 | K226: 11:53:52.153 | L226: 2012-05-23 | M226: 05:48:22.982 | N226: 20:12:01.930 | O226: 143 | P226: 21:00:09.024 | Q226: 7.89503589 | R226: 0 | S226: 7.89503589
C227: 05/24/2012 | D227: 04:53:08 | E227: 21:01:04.976 | F227: 7.867228898 | G227: 14465 | H227: =IF($B$10=1,IF(MATCH($L227,DATE(YEAR($L227),{1,3,11},{1,15,8})-WEEKDAY(DATE(YEAR($L227),{1,3,11},7)))=2,1,0),0) -> 1 | I227: 1.167418703 | J227: 21:01:04.976 | K227: 11:53:07.514 | L227: 2012-05-24 | M227: 05:47:47.396 | N227: 20:12:50.049 | O227: 144 | P227: 21:01:04.976 | Q227: 7.867093986 | R227: 0 | S227: 7.867093986
C228: 05/25/2012 | D228: 04:52:25 | E228: 21:01:59.986 | F228: 7.840003834 | G228: 14520 | H228: =IF($B$10=1,IF(MATCH($L228,DATE(YEAR($L228),{1,3,11},{1,15,8})-WEEKDAY(DATE(YEAR($L228),{1,3,11},7)))=2,1,0),0) -> 1 | I228: 1.168055396 | J228: 21:01:59.986 | K228: 11:52:24.828 | L228: 2012-05-25 | M228: 05:47:13.578 | N228: 20:13:37.381 | O228: 145 | P228: 21:01:59.986 | Q228: 7.839956088 | R228: 0 | S228: 7.839956088
C229: 05/26/2012 | D229: 04:51:44 | E229: 21:02:54.003 | F229: 7.813610143 | G229: 14574 | H229: =IF($B$10=1,IF(MATCH($L229,DATE(YEAR($L229),{1,3,11},{1,15,8})-WEEKDAY(DATE(YEAR($L229),{1,3,11},7)))=2,1,0),0) -> 1 | I229: 1.168680596 | J229: 21:02:54.003 | K229: 11:51:44.123 | L229: 2012-05-26 | M229: 05:46:41.543 | N229: 20:14:23.886 | O229: 146 | P229: 21:02:54.003 | Q229: 7.813644232 | R229: 0 | S229: 7.813644232
C230: 05/27/2012 | D230: 04:51:05 | E230: 21:03:46.977 | F230: 7.788062019 | G230: 14627 | H230: =IF($B$10=1,IF(MATCH($L230,DATE(YEAR($L230),{1,3,11},{1,15,8})-WEEKDAY(DATE(YEAR($L230),{1,3,11},7)))=2,1,0),0) -> 1 | I230: 1.169293712 | J230: 21:03:46.977 | K230: 11:51:05.425 | L230: 2012-05-27 | M230: 05:46:11.304 | N230: 20:15:09.527 | O230: 147 | P230: 21:03:46.977 | Q230: 7.788180212 | R230: 0 | S230: 7.788180212
C231: 05/28/2012 | D231: 04:50:29 | E231: 21:04:38.855 | F231: 7.763651504 | G231: 14679 | H231: =IF($B$10=1,IF(MATCH($L231,DATE(YEAR($L231),{1,3,11},{1,15,8})-WEEKDAY(DATE(YEAR($L231),{1,3,11},7)))=2,1,0),0) -> 1 | I231: 1.16989415 | J231: 21:04:38.855 | K231: 11:50:28.762 | L231: 2012-05-28 | M231: 05:45:42.872 | N231: 20:15:54.264 | O231: 148 | P231: 21:04:38.855 | Q231: 7.763585529 | R231: 0 | S231: 7.763585529
C232: 05/29/2012 | D232: 04:49:54 | E232: 21:05:29.586 | F232: 7.739837339 | G232: 14730 | H232: =IF($B$10=1,IF(MATCH($L232,DATE(YEAR($L232),{1,3,11},{1,15,8})-WEEKDAY(DATE(YEAR($L232),{1,3,11},7)))=2,1,0),0) -> 1 | I232: 1.170481315 | J232: 21:05:29.586 | K232: 11:49:54.158 | L232: 2012-05-29 | M232: 05:45:16.259 | N232: 20:16:38.057 | O232: 149 | P232: 21:05:29.586 | Q232: 7.73988134 | R232: 0 | S232: 7.73988134
C233: 05/30/2012 | D233: 04:49:22 | E233: 21:06:19.118 | F233: 7.717189383 | G233: 14779 | H233: =IF($B$10=1,IF(MATCH($L233,DATE(YEAR($L233),{1,3,11},{1,15,8})-WEEKDAY(DATE(YEAR($L233),{1,3,11},7)))=2,1,0),0) -> 1 | I233: 1.171054609 | J233: 21:06:19.118 | K233: 11:49:21.636 | L233: 2012-05-30 | M233: 05:44:51.474 | N233: 20:17:20.867 | O233: 150 | P233: 21:06:19.118 | Q233: 7.717088396 | R233: 0 | S233: 7.717088396
C234: 05/31/2012 | D234: 04:48:51 | E234: 21:07:07.401 | F234: 7.695166355 | G234: 14827 | H234: =IF($B$10=1,IF(MATCH($L234,DATE(YEAR($L234),{1,3,11},{1,15,8})-WEEKDAY(DATE(YEAR($L234),{1,3,11},7)))=2,1,0),0) -> 1 | I234: 1.171613439 | J234: 21:07:07.401 | K234: 11:48:51.218 | L234: 2012-05-31 | M234: 05:44:28.525 | N234: 20:18:02.654 | O234: 151 | P234: 21:07:07.401 | Q234: 7.695226992 | R234: 0 | S234: 7.695226992
C235: 06/01/2012 | D235: 04:48:23 | E235: 21:07:54.383 | F235: 7.674338027 | G235: 14874 | H235: =IF($B$10=1,IF(MATCH($L235,DATE(YEAR($L235),{1,3,11},{1,15,8})-WEEKDAY(DATE(YEAR($L235),{1,3,11},7)))=2,1,0),0) -> 1 | I235: 1.172157212 | J235: 21:07:54.383 | K235: 11:48:22.924 | L235: 2012-06-01 | M235: 05:44:07.418 | N235: 20:18:43.378 | O235: 152 | P235: 21:07:54.383 | Q235: 7.674316909 | R235: 0 | S235: 7.674316909
C236: 06/02/2012 | D236: 04:47:57 | E236: 21:08:40.013 | F236: 7.654440743 | G236: 14920 | H236: =IF($B$10=1,IF(MATCH($L236,DATE(YEAR($L236),{1,3,11},{1,15,8})-WEEKDAY(DATE(YEAR($L236),{1,3,11},7)))=2,1,0),0) -> 1 | I236: 1.172685339 | J236: 21:08:40.013 | K236: 11:47:56.772 | L236: 2012-06-02 | M236: 05:43:48.159 | N236: 20:19:23 | O236: 153 | P236: 21:08:40.013 | Q236: 7.654377357 | R236: 0 | S236: 7.654377357
C237: 06/03/2012 | D237: 04:47:33 | E237: 21:09:24.241 | F237: 7.635488498 | G237: 14964 | H237: =IF($B$10=1,IF(MATCH($L237,DATE(YEAR($L237),{1,3,11},{1,15,8})-WEEKDAY(DATE(YEAR($L237),{1,3,11},7)))=2,1,0),0) -> 1 | I237: 1.173197239 | J237: 21:09:24.241 | K237: 11:47:32.778 | L237: 2012-06-03 | M237: 05:43:30.752 | N237: 20:20:01.480 | O237: 154 | P237: 21:09:24.241 | Q237: 7.63542692 | R237: 0 | S237: 7.63542692
C238: 06/04/2012 | D238: 04:47:11 | E238: 21:10:07.018 | F238: 7.617495125 | G238: 15007 | H238: =IF($B$10=1,IF(MATCH($L238,DATE(YEAR($L238),{1,3,11},{1,15,8})-WEEKDAY(DATE(YEAR($L238),{1,3,11},7)))=2,1,0),0) -> 1 | I238: 1.173692333 | J238: 21:10:07.018 | K238: 11:47:10.958 | L238: 2012-06-04 | M238: 05:43:15.199 | N238: 20:20:38.779 | O238: 155 | P238: 21:10:07.018 | Q238: 7.617483498 | R238: 0 | S238: 7.617483498
C239: 06/05/2012 | D239: 04:46:51 | E239: 21:10:48.293 | F239: 7.600474262 | G239: 15048 | H239: =IF($B$10=1,IF(MATCH($L239,DATE(YEAR($L239),{1,3,11},{1,15,8})-WEEKDAY(DATE(YEAR($L239),{1,3,11},7)))=2,1,0),0) -> 1 | I239: 1.174170054 | J239: 21:10:48.293 | K239: 11:46:51.324 | L239: 2012-06-05 | M239: 05:43:01.501 | N239: 20:21:14.858 | O239: 156 | P239: 21:10:48.293 | Q239: 7.600564254 | R239: 0 | S239: 7.600564254
C240: 06/06/2012 | D240: 04:46:34 | E240: 21:11:28.018 | F240: 7.584717098 | G240: 15088 | H240: =IF($B$10=1,IF(MATCH($L240,DATE(YEAR($L240),{1,3,11},{1,15,8})-WEEKDAY(DATE(YEAR($L240),{1,3,11},7)))=2,1,0),0) -> 1 | I240: 1.174629843 | J240: 21:11:28.018 | K240: 11:46:33.886 | L240: 2012-06-06 | M240: 05:42:49.656 | N240: 20:21:49.678 | O240: 157 | P240: 21:11:28.018 | Q240: 7.58468556 | R240: 0 | S240: 7.58468556
C241: 06/07/2012 | D241: 04:46:19 | E241: 21:12:06.148 | F241: 7.569959002 | G241: 15126 | H241: =IF($B$10=1,IF(MATCH($L241,DATE(YEAR($L241),{1,3,11},{1,15,8})-WEEKDAY(DATE(YEAR($L241),{1,3,11},7)))=2,1,0),0) -> 1 | I241: 1.175071153 | J241: 21:12:06.148 | K241: 11:46:18.654 | L241: 2012-06-07 | M241: 05:42:39.664 | N241: 20:22:23.202 | O241: 158 | P241: 21:12:06.148 | Q241: 7.569862944 | R241: 0 | S241: 7.569862944
C242: 06/08/2012 | D242: 04:46:06 | E242: 21:12:42.634 | F242: 7.556212824 | G242: 15163 | H242: =IF($B$10=1,IF(MATCH($L242,DATE(YEAR($L242),{1,3,11},{1,15,8})-WEEKDAY(DATE(YEAR($L242),{1,3,11},7)))=2,1,0),0) -> 1 | I242: 1.175493447 | J242: 21:12:42.634 | K242: 11:46:05.634 | L242: 2012-06-08 | M242: 05:42:31.519 | N242: 20:22:55.392 | O242: 159 | P242: 21:12:42.634 | Q242: 7.556111037 | R242: 0 | S242: 7.556111037
C243: 06/09/2012 | D243: 04:45:55 | E243: 21:13:17.432 | F243: 7.543491088 | G243: 15197 | H243: =IF($B$10=1,IF(MATCH($L243,DATE(YEAR($L243),{1,3,11},{1,15,8})-WEEKDAY(DATE(YEAR($L243),{1,3,11},7)))=2,1,0),0) -> 1 | I243: 1.175896205 | J243: 21:13:17.432 | K243: 11:45:54.829 | L243: 2012-06-09 | M243: 05:42:25.217 | N243: 20:23:26.211 | O243: 160 | P243: 21:13:17.432 | Q243: 7.543443528 | R243: 0 | S243: 7.543443528
C244: 06/10/2012 | D244: 04:45:46 | E244: 21:13:50.499 | F244: 7.531805956 | G244: 15230 | H244: =IF($B$10=1,IF(MATCH($L244,DATE(YEAR($L244),{1,3,11},{1,15,8})-WEEKDAY(DATE(YEAR($L244),{1,3,11},7)))=2,1,0),0) -> 1 | I244: 1.176278918 | J244: 21:13:50.499 | K244: 11:45:46.242 | L244: 2012-06-10 | M244: 05:42:20.751 | N244: 20:23:55.624 | O244: 161 | P244: 21:13:50.499 | Q244: 7.531873114 | R244: 0 | S244: 7.531873114
C245: 06/11/2012 | D245: 04:45:40 | E245: 21:14:21.791 | F245: 7.521446979 | G245: 15262 | H245: =IF($B$10=1,IF(MATCH($L245,DATE(YEAR($L245),{1,3,11},{1,15,8})-WEEKDAY(DATE(YEAR($L245),{1,3,11},7)))=2,1,0),0) -> 1 | I245: 1.176641098 | J245: 21:14:21.791 | K245: 11:45:39.872 | L245: 2012-06-11 | M245: 05:42:18.111 | N245: 20:24:23.595 | O245: 162 | P245: 21:14:21.791 | Q245: 7.521411458 | R245: 0 | S245: 7.521411458
C246: 06/12/2012 | D246: 04:45:36 | E246: 21:14:51.268 | F246: 7.512147731 | G246: 15291 | H246: =IF($B$10=1,IF(MATCH($L246,DATE(YEAR($L246),{1,3,11},{1,15,8})-WEEKDAY(DATE(YEAR($L246),{1,3,11},7)))=2,1,0),0) -> 1 | I246: 1.17698227 | J246: 21:14:51.268 | K246: 11:45:35.717 | L246: 2012-06-12 | M246: 05:42:17.287 | N246: 20:24:50.090 | O246: 163 | P246: 21:14:51.268 | Q246: 7.512069151 | R246: 0 | S246: 7.512069151
C247: 06/13/2012 | D247: 04:45:34 | E247: 21:15:18.891 | F247: 7.503919114 | G247: 15319 | H247: =IF($B$10=1,IF(MATCH($L247,DATE(YEAR($L247),{1,3,11},{1,15,8})-WEEKDAY(DATE(YEAR($L247),{1,3,11},7)))=2,1,0),0) -> 1 | I247: 1.177301981 | J247: 21:15:18.891 | K247: 11:45:33.772 | L247: 2012-06-13 | M247: 05:42:18.268 | N247: 20:25:15.076 | O247: 164 | P247: 21:15:18.891 | Q247: 7.503855667 | R247: 0 | S247: 7.503855667
C248: 06/14/2012 | D248: 04:45:34 | E248: 21:15:44.622 | F248: 7.496771558 | G248: 15345 | H248: =IF($B$10=1,IF(MATCH($L248,DATE(YEAR($L248),{1,3,11},{1,15,8})-WEEKDAY(DATE(YEAR($L248),{1,3,11},7)))=2,1,0),0) -> 1 | I248: 1.177599796 | J248: 21:15:44.622 | K248: 11:45:34.028 | L248: 2012-06-14 | M248: 05:42:21.041 | N248: 20:25:38.520 | O248: 165 | P248: 21:15:44.622 | Q248: 7.496779337 | R248: 0 | S248: 7.496779337
C249: 06/15/2012 | D249: 04:45:36 | E249: 21:16:08.426 | F249: 7.490714988 | G249: 15368 | H249: =IF($B$10=1,IF(MATCH($L249,DATE(YEAR($L249),{1,3,11},{1,15,8})-WEEKDAY(DATE(YEAR($L249),{1,3,11},7)))=2,1,0),0) -> 1 | I249: 1.177875301 | J249: 21:16:08.426 | K249: 11:45:36.476 | L249: 2012-06-15 | M249: 05:42:25.588 | N249: 20:26:00.392 | O249: 166 | P249: 21:16:08.426 | Q249: 7.490847315 | R249: 0 | S249: 7.490847315
C250: 06/16/2012 | D250: 04:45:41 | E250: 21:16:30.268 | F250: 7.486036587 | G250: 15390 | H250: =IF($B$10=1,IF(MATCH($L250,DATE(YEAR($L250),{1,3,11},{1,15,8})-WEEKDAY(DATE(YEAR($L250),{1,3,11},7)))=2,1,0),0) -> 1 | I250: 1.178128105 | J250: 21:16:30.268 | K250: 11:45:41.104 | L250: 2012-06-16 | M250: 05:42:31.896 | N250: 20:26:20.660 | O250: 167 | P250: 21:16:30.268 | Q250: 7.486065553 | R250: 0 | S250: 7.486065553
C251: 06/17/2012 | D251: 04:45:48 | E251: 21:16:50.117 | F251: 7.482467432 | G251: 15410 | H251: =IF($B$10=1,IF(MATCH($L251,DATE(YEAR($L251),{1,3,11},{1,15,8})-WEEKDAY(DATE(YEAR($L251),{1,3,11},7)))=2,1,0),0) -> 1 | I251: 1.178357838 | J251: 21:16:50.117 | K251: 11:45:47.897 | L251: 2012-06-17 | M251: 05:42:39.944 | N251: 20:26:39.297 | O251: 168 | P251: 21:16:50.117 | Q251: 7.482438778 | R251: 0 | S251: 7.482438778
C252: 06/18/2012 | D252: 04:45:57 | E252: 21:17:07.943 | F252: 7.480015817 | G252: 15428 | H252: =IF($B$10=1,IF(MATCH($L252,DATE(YEAR($L252),{1,3,11},{1,15,8})-WEEKDAY(DATE(YEAR($L252),{1,3,11},7)))=2,1,0),0) -> 1 | I252: 1.178564156 | J252: 21:17:07.943 | K252: 11:45:56.837 | L252: 2012-06-18 | M252: 05:42:49.713 | N252: 20:26:56.275 | O252: 169 | P252: 21:17:07.943 | Q252: 7.479970477 | R252: 0 | S252: 7.479970477
C253: 06/19/2012 | D253: 04:46:08 | E253: 21:17:23.718 | F253: 7.47868945 | G253: 15444 | H253: =IF($B$10=1,IF(MATCH($L253,DATE(YEAR($L253),{1,3,11},{1,15,8})-WEEKDAY(DATE(YEAR($L253),{1,3,11},7)))=2,1,0),0) -> 1 | I253: 1.178746736 | J253: 21:17:23.718 | K253: 11:46:07.904 | L253: 2012-06-19 | M253: 05:43:01.181 | N253: 20:27:11.568 | O253: 170 | P253: 21:17:23.718 | Q253: 7.478662882 | R253: 0 | S253: 7.478662882
... 1694 more rows

Sheet solar_position
A1: Calculation of solar azimuth and elevation based on the calculation procedure by NOAA (http://www.srrb.noaa.gov/highlights/sunrise/azel.html)
A3: Input
A4: latitude in decimal degrees (positive in northern hemisphere) | B4: =47+36/60 -> 47.6
A5: longitude in decimal degrees (negative for western hemisphere) | B5: =-122-19/60 -> -122.3166667
A6: year | B6: 2001
A7: month | B7: 6
A8: day | B8: 21
A9: hours | B9: 13
A10: minutes | B10: 11
A11: seconds | B11: 0
A12: time zone in hours relative to GMT/UTC (PST= -8, MST= -7, CST= -6, EST= -5) | B12: -8
A13: daylight savings time (no= 0, yes= 1) | B13: 1
A15: Output
A16: solar azimuth (degrees clockwise from north) | B16: =solarazimuth(B4,B5,B6,B7,B8,B9,B10,B11,B12,B13) -> 179.9336529
A17: solar elevation (degrees from horizon) | B17: =solarelevation(B4,B5,B6,B7,B8,B9,B10,B11,B12,B13) -> 65.84507751
